Workbook

Sheet Recipe Sheet
A1: Glaze Worksheet
B2: <Recipe Name> | AB2: Glaze Ratio Al:Si
B3: Cone | C3: 6 | D3: Atm | F3: Oxidation | AB3: 0 | AC3: 0
B5: Ingredient | C5: =CONCATENATE("Wt (",UnitType,")") -> Wt (Grams) | F5: Oxide Composition | G5: =IF(CurrentWorksheet!C31="","",CurrentWorksheet!C31) -> wt | H5: % | I5: RO Unity | J5: R2O3 Unity | K5: =IF(CurrentWorksheet!D31="","",CurrentWorksheet!D31) -> moles | L5: Mole%
A6: =IF(B6="","",1) ->  | F6: =IF(CurrentWorksheet!B32="","",CurrentWorksheet!B32) ->  | G6: =IF(CurrentWorksheet!C32="","",CurrentWorksheet!C32) ->  | H6: =IF(G6="","",G6/G$26) ->  | I6: =IF(OR(K6="",CurrentWorksheet!$I$52=0),"",K6/CurrentWorksheet!$I$52) ->  | J6: =IF(OR(K6="",AluminaMoles=""),"",K6/AluminaMoles) ->  | K6: =IF(CurrentWorksheet!D32="","",CurrentWorksheet!D32) ->  | L6: =IF(K6="","",K6/K$26) -> 
A7: =IF(OR(B7="",A6=""),"",A6+1) ->  | F7: =IF(CurrentWorksheet!B33="","",CurrentWorksheet!B33) ->  | G7: =IF(CurrentWorksheet!C33="","",CurrentWorksheet!C33) ->  | I7: =IF(OR(K7="",CurrentWorksheet!$I$52=0),"",K7/CurrentWorksheet!$I$52) ->  | J7: =IF(OR(K7="",AluminaMoles=""),"",K7/AluminaMoles) ->  | K7: =IF(CurrentWorksheet!D33="","",CurrentWorksheet!D33) -> 
A8: =IF(OR(B8="",A7=""),"",A7+1) ->  | F8: =IF(CurrentWorksheet!B34="","",CurrentWorksheet!B34) ->  | G8: =IF(CurrentWorksheet!C34="","",CurrentWorksheet!C34) ->  | I8: =IF(OR(K8="",CurrentWorksheet!$I$52=0),"",K8/CurrentWorksheet!$I$52) ->  | K8: =IF(CurrentWorksheet!D34="","",CurrentWorksheet!D34) -> 
A9: =IF(OR(B9="",A8=""),"",A8+1) ->  | F9: =IF(CurrentWorksheet!B35="","",CurrentWorksheet!B35) ->  | G9: =IF(CurrentWorksheet!C35="","",CurrentWorksheet!C35) ->  | I9: =IF(OR(K9="",CurrentWorksheet!$I$52=0),"",K9/CurrentWorksheet!$I$52) ->  | K9: =IF(CurrentWorksheet!D35="","",CurrentWorksheet!D35) -> 
F10: =IF(CurrentWorksheet!B36="","",CurrentWorksheet!B36) ->  | G10: =IF(CurrentWorksheet!C36="","",CurrentWorksheet!C36) ->  | I10: =IF(OR(K10="",CurrentWorksheet!$I$52=0),"",K10/CurrentWorksheet!$I$52) ->  | K10: =IF(CurrentWorksheet!D36="","",CurrentWorksheet!D36) -> 
F11: =IF(CurrentWorksheet!B37="","",CurrentWorksheet!B37) ->  | G11: =IF(CurrentWorksheet!C37="","",CurrentWorksheet!C37) ->  | I11: =IF(OR(K11="",CurrentWorksheet!$I$52=0),"",K11/CurrentWorksheet!$I$52) ->  | K11: =IF(CurrentWorksheet!D37="","",CurrentWorksheet!D37) -> 
F12: =IF(CurrentWorksheet!B38="","",CurrentWorksheet!B38) ->  | G12: =IF(CurrentWorksheet!C38="","",CurrentWorksheet!C38) ->  | I12: =IF(OR(K12="",CurrentWorksheet!$I$52=0),"",K12/CurrentWorksheet!$I$52) ->  | K12: =IF(CurrentWorksheet!D38="","",CurrentWorksheet!D38) -> 
F13: =IF(CurrentWorksheet!B39="","",CurrentWorksheet!B39) ->  | G13: =IF(CurrentWorksheet!C39="","",CurrentWorksheet!C39) ->  | I13: =IF(OR(K13="",CurrentWorksheet!$I$52=0),"",K13/CurrentWorksheet!$I$52) ->  | K13: =IF(CurrentWorksheet!D39="","",CurrentWorksheet!D39) -> 
F14: =IF(CurrentWorksheet!B40="","",CurrentWorksheet!B40) ->  | G14: =IF(CurrentWorksheet!C40="","",CurrentWorksheet!C40) ->  | I14: =IF(OR(K14="",CurrentWorksheet!$I$52=0),"",K14/CurrentWorksheet!$I$52) ->  | K14: =IF(CurrentWorksheet!D40="","",CurrentWorksheet!D40) -> 
F15: =IF(CurrentWorksheet!B41="","",CurrentWorksheet!B41) ->  | G15: =IF(CurrentWorksheet!C41="","",CurrentWorksheet!C41) ->  | I15: =IF(OR(K15="",CurrentWorksheet!$I$52=0),"",K15/CurrentWorksheet!$I$52) ->  | K15: =IF(CurrentWorksheet!D41="","",CurrentWorksheet!D41) -> 
F16: =IF(CurrentWorksheet!B42="","",CurrentWorksheet!B42) ->  | G16: =IF(CurrentWorksheet!C42="","",CurrentWorksheet!C42) ->  | I16: =IF(OR(K16="",CurrentWorksheet!$I$52=0),"",K16/CurrentWorksheet!$I$52) ->  | K16: =IF(CurrentWorksheet!D42="","",CurrentWorksheet!D42) -> 
F17: =IF(CurrentWorksheet!B43="","",CurrentWorksheet!B43) ->  | G17: =IF(CurrentWorksheet!C43="","",CurrentWorksheet!C43) ->  | I17: =IF(OR(K17="",CurrentWorksheet!$I$52=0),"",K17/CurrentWorksheet!$I$52) ->  | K17: =IF(CurrentWorksheet!D43="","",CurrentWorksheet!D43) -> 
F18: =IF(CurrentWorksheet!B44="","",CurrentWorksheet!B44) ->  | G18: =IF(CurrentWorksheet!C44="","",CurrentWorksheet!C44) ->  | I18: =IF(OR(K18="",CurrentWorksheet!$I$52=0),"",K18/CurrentWorksheet!$I$52) ->  | K18: =IF(CurrentWorksheet!D44="","",CurrentWorksheet!D44) -> 
F19: =IF(CurrentWorksheet!B45="","",CurrentWorksheet!B45) ->  | G19: =IF(CurrentWorksheet!C45="","",CurrentWorksheet!C45) ->  | I19: =IF(OR(K19="",CurrentWorksheet!$I$52=0),"",K19/CurrentWorksheet!$I$52) ->  | K19: =IF(CurrentWorksheet!D45="","",CurrentWorksheet!D45) -> 
F20: =IF(CurrentWorksheet!B46="","",CurrentWorksheet!B46) ->  | G20: =IF(CurrentWorksheet!C46="","",CurrentWorksheet!C46) ->  | I20: =IF(OR(K20="",CurrentWorksheet!$I$52=0),"",K20/CurrentWorksheet!$I$52) ->  | K20: =IF(CurrentWorksheet!D46="","",CurrentWorksheet!D46) -> 
F21: =IF(CurrentWorksheet!B47="","",CurrentWorksheet!B47) ->  | G21: =IF(CurrentWorksheet!C47="","",CurrentWorksheet!C47) ->  | I21: =IF(OR(K21="",CurrentWorksheet!$I$52=0),"",K21/CurrentWorksheet!$I$52) ->  | K21: =IF(CurrentWorksheet!D47="","",CurrentWorksheet!D47) -> 
F22: =IF(CurrentWorksheet!B48="","",CurrentWorksheet!B48) ->  | G22: =IF(CurrentWorksheet!C48="","",CurrentWorksheet!C48) ->  | I22: =IF(OR(K22="",CurrentWorksheet!$I$52=0),"",K22/CurrentWorksheet!$I$52) ->  | K22: =IF(CurrentWorksheet!D48="","",CurrentWorksheet!D48) -> 
F23: =IF(CurrentWorksheet!B49="","",CurrentWorksheet!B49) ->  | G23: =IF(CurrentWorksheet!C49="","",CurrentWorksheet!C49) ->  | I23: =IF(OR(K23="",CurrentWorksheet!$I$52=0),"",K23/CurrentWorksheet!$I$52) ->  | K23: =IF(CurrentWorksheet!D49="","",CurrentWorksheet!D49) -> 
I24: =IF(OR(K24="",CurrentWorksheet!$I$52=0),"",K24/CurrentWorksheet!$I$52) -> 
I25: =IF(OR(K25="",CurrentWorksheet!$I$52=0),"",K25/CurrentWorksheet!$I$52) -> 
B26: Totals | C26: =SUM(C6:D25) -> 0 | G26: =SUM(G6:G25) -> 0 | H26: 0 | I26: =SUM(I6:I25) -> 0 | J26: =SUM(J6:J25) -> 0 | K26: 0 | L26: 0
F27: Notes
B28: SiO2:Al2O3 ratio | C28: =IF(CurrentWorksheet!M32="","",CurrentWorksheet!M33/CurrentWorksheet!M32) -> 
B29: RO:R2O3:RO2 ratio | C29: ='Mix Worksheet'!C29:D29 -> 
B30: Coefficient of Expansion (F°) | C30: =IF(CurrentWorksheet!E52="","",ROUND(CurrentWorksheet!E52*10,1)&"x10") ->  | D30: =IF(CurrentWorksheet!E52="","",-7) -> 
B31: Cost per Kilo | C31: =IF(CurrentWorksheet!C27=0,0,CurrentWorksheet!A27*VLOOKUP(UnitType,UnitConversionTable,2,FALSE)/CurrentWorksheet!C27) -> 0
B32: Cost per Pound | C32: =IF(C31<>"",C31/2.2,"") -> 0
B33: Cost for this amount | C33: =CurrentWorksheet!A27 -> 0
B34: R2O:RO ratio | C34: =CurrentWorksheet!C30 -> 
B36: Unit Weight | C36: Grams

Sheet Mix Worksheet
A1: Mix Worksheet
B2: =IF('Recipe Sheet'!B2<>"",'Recipe Sheet'!B2:C2,"") -> <Recipe Name> | F2: Atm | G2: ='Recipe Sheet'!F3 -> Oxidation | I2: =IF($F$3="Batch by Wt",G3,J2) ->  | J2: =IF(G3<>"",O3/(1+O5/O6),"") ->  | L2: =IF(CurrentWorksheet!D27<>0,IF(F3<>"Batch by Wt",G3-C26/CurrentWorksheet!D27,G3*O5/O6),"") -> 
B3: Cone | C3: ='Recipe Sheet'!C3 -> 6 | F3: Batch by Vol | I3: =CONCATENATE(" ",C37) -> ml | J3: Sp Gr | K3: 1.4 | O3: =G3*K3 -> 0
B5: Ingredient | C5: =CONCATENATE("Wt (",UnitType,")") -> Wt (Grams) | F5: Added Amt | H5: Batch notes | N5: =(C26+C34)/(C34+C26/CurrentWorksheet!D27) ->  | O5: =1-K3/CurrentWorksheet!D27 -> 
A6: =IF(B6="","",1) ->  | B6: =IF('Recipe Sheet'!B6="","",'Recipe Sheet'!B6) ->  | C6: =IF('Recipe Sheet'!C6="","",$I$2/'Recipe Sheet'!$C$26*'Recipe Sheet'!C6) ->  | N6: =C26/CurrentWorksheet!D27+C34 ->  | O6: =K3-1 -> 0.4
A7: =IF(B7="","",A6+1) ->  | B7: =IF('Recipe Sheet'!B7="","",'Recipe Sheet'!B7) ->  | C7: =IF('Recipe Sheet'!C7="","",$I$2/'Recipe Sheet'!$C$26*'Recipe Sheet'!C7) -> 
B8: =IF('Recipe Sheet'!B8="","",'Recipe Sheet'!B8) ->  | C8: =IF('Recipe Sheet'!C8="","",$I$2/'Recipe Sheet'!$C$26*'Recipe Sheet'!C8) -> 
B9: =IF('Recipe Sheet'!B9="","",'Recipe Sheet'!B9) ->  | C9: =IF('Recipe Sheet'!C9="","",$I$2/'Recipe Sheet'!$C$26*'Recipe Sheet'!C9) -> 
B10: =IF('Recipe Sheet'!B10="","",'Recipe Sheet'!B10) ->  | C10: =IF('Recipe Sheet'!C10="","",$I$2/'Recipe Sheet'!$C$26*'Recipe Sheet'!C10) -> 
B11: =IF('Recipe Sheet'!B11="","",'Recipe Sheet'!B11) ->  | C11: =IF('Recipe Sheet'!C11="","",$I$2/'Recipe Sheet'!$C$26*'Recipe Sheet'!C11) -> 
B12: =IF('Recipe Sheet'!B12="","",'Recipe Sheet'!B12) ->  | C12: =IF('Recipe Sheet'!C12="","",$I$2/'Recipe Sheet'!$C$26*'Recipe Sheet'!C12) -> 
B13: =IF('Recipe Sheet'!B13="","",'Recipe Sheet'!B13) ->  | C13: =IF('Recipe Sheet'!C13="","",$I$2/'Recipe Sheet'!$C$26*'Recipe Sheet'!C13) -> 
B14: =IF('Recipe Sheet'!B14="","",'Recipe Sheet'!B14) ->  | C14: =IF('Recipe Sheet'!C14="","",$I$2/'Recipe Sheet'!$C$26*'Recipe Sheet'!C14) -> 
B15: =IF('Recipe Sheet'!B15="","",'Recipe Sheet'!B15) ->  | C15: =IF('Recipe Sheet'!C15="","",$I$2/'Recipe Sheet'!$C$26*'Recipe Sheet'!C15) -> 
B16: =IF('Recipe Sheet'!B16="","",'Recipe Sheet'!B16) ->  | C16: =IF('Recipe Sheet'!C16="","",$I$2/'Recipe Sheet'!$C$26*'Recipe Sheet'!C16) -> 
B17: =IF('Recipe Sheet'!B17="","",'Recipe Sheet'!B17) ->  | C17: =IF('Recipe Sheet'!C17="","",$I$2/'Recipe Sheet'!$C$26*'Recipe Sheet'!C17) -> 
B18: =IF('Recipe Sheet'!B18="","",'Recipe Sheet'!B18) ->  | C18: =IF('Recipe Sheet'!C18="","",$I$2/'Recipe Sheet'!$C$26*'Recipe Sheet'!C18) -> 
B19: =IF('Recipe Sheet'!B19="","",'Recipe Sheet'!B19) ->  | C19: =IF('Recipe Sheet'!C19="","",$I$2/'Recipe Sheet'!$C$26*'Recipe Sheet'!C19) -> 
B20: =IF('Recipe Sheet'!B20="","",'Recipe Sheet'!B20) ->  | C20: =IF('Recipe Sheet'!C20="","",$I$2/'Recipe Sheet'!$C$26*'Recipe Sheet'!C20) -> 
B21: =IF('Recipe Sheet'!B21="","",'Recipe Sheet'!B21) ->  | C21: =IF('Recipe Sheet'!C21="","",$I$2/'Recipe Sheet'!$C$26*'Recipe Sheet'!C21) -> 
B22: =IF('Recipe Sheet'!B22="","",'Recipe Sheet'!B22) ->  | C22: =IF('Recipe Sheet'!C22="","",$I$2/'Recipe Sheet'!$C$26*'Recipe Sheet'!C22) -> 
B23: =IF('Recipe Sheet'!B23="","",'Recipe Sheet'!B23) ->  | C23: =IF('Recipe Sheet'!C23="","",$I$2/'Recipe Sheet'!$C$26*'Recipe Sheet'!C23) -> 
B24: =IF('Recipe Sheet'!B24="","",'Recipe Sheet'!B24) ->  | C24: =IF('Recipe Sheet'!C24="","",$I$2/'Recipe Sheet'!$C$26*'Recipe Sheet'!C24) -> 
B25: =IF('Recipe Sheet'!B25="","",'Recipe Sheet'!B25) ->  | C25: =IF('Recipe Sheet'!C25="","",$I$2/'Recipe Sheet'!$C$26*'Recipe Sheet'!C25) -> 
B26: Totals | C26: =SUM(C6:D25) -> 0 | F26: =SUM(F6:F25) -> 0
F27: Notes
B28: ='Recipe Sheet'!B28 -> SiO2:Al2O3 ratio | C28: =IF(CurrentWorksheet!M32="","",CurrentWorksheet!M33/CurrentWorksheet!M32) ->  | F28: =IF('Recipe Sheet'!F28<>"",'Recipe Sheet'!F28:L37,"") -> 
B29: ='Recipe Sheet'!B29 -> RO:R2O3:RO2 ratio | C29: =CurrentWorksheet!C29 -> 
B30: ='Recipe Sheet'!B30 -> Coefficient of Expansion (F°) | C30: =IF(CurrentWorksheet!E52="","",ROUND(CurrentWorksheet!E52*10,1)&"x10") ->  | D30: =IF(CurrentWorksheet!E52="","",-7) -> 
B31: ='Recipe Sheet'!B31 -> Cost per Kilo | C31: ='Recipe Sheet'!C31:D31 -> 0
B32: ='Recipe Sheet'!B32 -> Cost per Pound | C32: ='Recipe Sheet'!C32:D32 -> 0
B33: ='Recipe Sheet'!B33 -> Cost for this amount | C33: =IF(CurrentWorksheet!A27<>0,C26/VLOOKUP(C36,UnitConversionTable,2)*C31,0) -> 0
B34: =CONCATENATE("Water to add in ", C37) -> Water to add in ml | C34: =IF(L2<>"",L2,"") -> 
B36: Unit Weight | C36: =UnitType -> Grams
B37: Unit Volume | C37: =VLOOKUP(C36,UnitConversionTable,6) -> ml

Sheet CurrentWorksheet (hidden)
A1: Composition Worksheet | D1: Oxide | E1: =RawMaterialTable!D1 -> BaO | F1: =RawMaterialTable!E1 -> CaO | G1: =RawMaterialTable!F1 -> PbO | H1: =RawMaterialTable!G1 -> Li2O | I1: =RawMaterialTable!H1 -> MgO | J1: =RawMaterialTable!I1 -> K2O | K1: =RawMaterialTable!J1 -> Na2O | L1: =RawMaterialTable!K1 -> SrO | M1: =RawMaterialTable!L1 -> ZnO | N1: =RawMaterialTable!M1 -> SnO2 | O1: =RawMaterialTable!N1 -> TiO2 | P1: =RawMaterialTable!O1 -> ZrO2 | Q1: =RawMaterialTable!P1 -> Al2O3 | R1: =RawMaterialTable!Q1 -> B2O3 | S1: =RawMaterialTable!R1 -> P2O5 | T1: =RawMaterialTable!S1 -> SiO2 | U1: =RawMaterialTable!T1 -> Fe2O3 | V1: =RawMaterialTable!U1 -> Cr2O3 | W1: =RawMaterialTable!V1 -> CuO | X1: =RawMaterialTable!W1 -> CoO | Y1: =RawMaterialTable!X1 -> MnO | Z1: NiO | AA1: =RawMaterialTable!Z1 -> Available | AB1: =RawMaterialTable!AA1 -> 0 | AC1: =RawMaterialTable!AB1 -> 0 | AD1: =RawMaterialTable!AC1 -> Price/Lb
D2: At Wt | E2: =RawMaterialTable!D2 -> 153.33 | F2: =RawMaterialTable!E2 -> 56.08 | G2: =RawMaterialTable!F2 -> 223.2 | H2: =RawMaterialTable!G2 -> 29.882 | I2: =RawMaterialTable!H2 -> 40.31 | J2: =RawMaterialTable!I2 -> 94.2 | K2: =RawMaterialTable!J2 -> 61.98 | L2: =RawMaterialTable!K2 -> 103.62 | M2: =RawMaterialTable!L2 -> 81.39 | N2: =RawMaterialTable!M2 -> 150.71 | O2: =RawMaterialTable!N2 -> 79.87 | P2: =RawMaterialTable!O2 -> 123.22 | Q2: =RawMaterialTable!P2 -> 101.96 | R2: =RawMaterialTable!Q2 -> 69.6182 | S2: =RawMaterialTable!R2 -> 141.94 | T2: =RawMaterialTable!S2 -> 60.09 | U2: =RawMaterialTable!T2 -> 159.68 | V2: =RawMaterialTable!U2 -> 152 | W2: =RawMaterialTable!V2 -> 79.54 | X2: =RawMaterialTable!W2 -> 74.93 | Y2: =RawMaterialTable!X2 -> 70.94 | Z2: 74.69 | AA2: =RawMaterialTable!Z2 -> 0 | AB2: =RawMaterialTable!AA2 -> <--Weight | AC2: =RawMaterialTable!AB2 -> 0 | AD2: =RawMaterialTable!AC2 -> 0
D3: CoTE | E3: =RawMaterialTable!D3 -> 7.166666667 | F3: =RawMaterialTable!E3 -> 7.288888889 | G3: =RawMaterialTable!F3 -> 8.3 | H3: =RawMaterialTable!G3 -> 6.8 | I3: =RawMaterialTable!H3 -> 6 | J3: =RawMaterialTable!I3 -> 33.1 | K3: =RawMaterialTable!J3 -> 38.7 | L3: =RawMaterialTable!K3 -> 7.455555556 | M3: =RawMaterialTable!L3 -> 9.4 | N3: =RawMaterialTable!M3 -> 3.65 | O3: =RawMaterialTable!N3 -> 3.966666667 | P3: =RawMaterialTable!O3 -> 2 | Q3: =RawMaterialTable!P3 -> 3 | R3: =RawMaterialTable!Q3 -> 3.1 | S3: =RawMaterialTable!R3 -> 7.14 | T3: =RawMaterialTable!S3 -> 0.3055555556 | U3: =RawMaterialTable!T3 -> 5.783333333 | V3: =RawMaterialTable!U3 -> 6.333333333 | W3: =RawMaterialTable!V3 -> 3.5 | X3: =RawMaterialTable!W3 -> 5.555555556 | Y3: =RawMaterialTable!X3 -> 5 | Z3: 8.8 | AA3: =RawMaterialTable!Z3 -> 0 | AB3: =RawMaterialTable!AA3 -> <--Expansion | AC3: =RawMaterialTable!AB3 -> Totality | AD3: =RawMaterialTable!AC3 -> 0
A6: Cost | B6: Materials | C6: Oxidation | D6: Sp. Gr.
A7: =IF(OR($B7="", $C7=""),"",$C7*VLOOKUP($B7,MaterialsDB,3,FALSE)/VLOOKUP(UnitType,UnitConversionTable,2,FALSE)) ->  | B7: =IF('Recipe Sheet'!B6="","",'Recipe Sheet'!B6) ->  | C7: =IF('Recipe Sheet'!C6="","",'Recipe Sheet'!C6) ->  | D7: =IF(OR($B7="", $C7=""),"",$C7*VLOOKUP($B7,MaterialsDB,COLUMN(AD7),FALSE)/C$27) ->  | E7: =IF(OR($B7="", $C7=""),"",$C7*VLOOKUP($B7,MaterialsDB,COLUMN(E7)-1,FALSE)/100) ->  | F7: =IF(OR($B7="", $C7=""),"",$C7*VLOOKUP($B7,MaterialsDB,COLUMN(F7)-1,FALSE)/100) ->  | V7: =IF(OR($B7="", $C7=""),"",$C7*VLOOKUP($B7,MaterialsDB,COLUMN(V7)-1,FALSE)/100) -> 
A8: =IF(OR($B8="", $C8=""),"",$C8*VLOOKUP($B8,MaterialsDB,3,FALSE)/VLOOKUP(UnitType,UnitConversionTable,2,FALSE)) ->  | B8: =IF('Recipe Sheet'!B7="","",'Recipe Sheet'!B7) ->  | C8: =IF('Recipe Sheet'!C7="","",'Recipe Sheet'!C7) ->  | E8: =IF(OR($B8="", $C8=""),"",$C8*VLOOKUP($B8,MaterialsDB,COLUMN(E8)-1,FALSE)/100) -> 
B9: =IF('Recipe Sheet'!B8="","",'Recipe Sheet'!B8) ->  | C9: =IF('Recipe Sheet'!C8="","",'Recipe Sheet'!C8) -> 
B10: =IF('Recipe Sheet'!B9="","",'Recipe Sheet'!B9) ->  | C10: =IF('Recipe Sheet'!C9="","",'Recipe Sheet'!C9) -> 
B11: =IF('Recipe Sheet'!B10="","",'Recipe Sheet'!B10) ->  | C11: =IF('Recipe Sheet'!C10="","",'Recipe Sheet'!C10) -> 
B12: =IF('Recipe Sheet'!B11="","",'Recipe Sheet'!B11) ->  | C12: =IF('Recipe Sheet'!C11="","",'Recipe Sheet'!C11) -> 
B13: =IF('Recipe Sheet'!B12="","",'Recipe Sheet'!B12) ->  | C13: =IF('Recipe Sheet'!C12="","",'Recipe Sheet'!C12) -> 
B14: =IF('Recipe Sheet'!B13="","",'Recipe Sheet'!B13) ->  | C14: =IF('Recipe Sheet'!C13="","",'Recipe Sheet'!C13) -> 
B15: =IF('Recipe Sheet'!B14="","",'Recipe Sheet'!B14) ->  | C15: =IF('Recipe Sheet'!C14="","",'Recipe Sheet'!C14) -> 
B16: =IF('Recipe Sheet'!B15="","",'Recipe Sheet'!B15) ->  | C16: =IF('Recipe Sheet'!C15="","",'Recipe Sheet'!C15) -> 
B17: =IF('Recipe Sheet'!B16="","",'Recipe Sheet'!B16) ->  | C17: =IF('Recipe Sheet'!C16="","",'Recipe Sheet'!C16) -> 
B18: =IF('Recipe Sheet'!B17="","",'Recipe Sheet'!B17) ->  | C18: =IF('Recipe Sheet'!C17="","",'Recipe Sheet'!C17) -> 
B19: =IF('Recipe Sheet'!B18="","",'Recipe Sheet'!B18) ->  | C19: =IF('Recipe Sheet'!C18="","",'Recipe Sheet'!C18) -> 
B20: =IF('Recipe Sheet'!B19="","",'Recipe Sheet'!B19) ->  | C20: =IF('Recipe Sheet'!C19="","",'Recipe Sheet'!C19) -> 
B21: =IF('Recipe Sheet'!B20="","",'Recipe Sheet'!B20) ->  | C21: =IF('Recipe Sheet'!C20="","",'Recipe Sheet'!C20) -> 
B22: =IF('Recipe Sheet'!B21="","",'Recipe Sheet'!B21) ->  | C22: =IF('Recipe Sheet'!C21="","",'Recipe Sheet'!C21) ->  | U22: =IF(OR($B22="", $C22=""),"",$C22*VLOOKUP($B22,MaterialsDB,COLUMN(U22)-1,FALSE)/100) -> 
B23: =IF('Recipe Sheet'!B22="","",'Recipe Sheet'!B22) ->  | C23: =IF('Recipe Sheet'!C22="","",'Recipe Sheet'!C22) ->  | F23: =IF(OR($B23="", $C23=""),"",$C23*VLOOKUP($B23,MaterialsDB,COLUMN(F23)-1,FALSE)/100) -> 
B24: =IF('Recipe Sheet'!B23="","",'Recipe Sheet'!B23) ->  | C24: =IF('Recipe Sheet'!C23="","",'Recipe Sheet'!C23) ->  | E24: =IF(OR($B24="", $C24=""),"",$C24*VLOOKUP($B24,MaterialsDB,COLUMN(E24)-1,FALSE)/100) -> 
A25: =IF(OR($B25="", $C25=""),"",$C25*VLOOKUP($B25,MaterialsDB,3,FALSE)/VLOOKUP(UnitType,UnitConversionTable,2,FALSE)) ->  | B25: =IF('Recipe Sheet'!B24="","",'Recipe Sheet'!B24) ->  | C25: =IF('Recipe Sheet'!C24="","",'Recipe Sheet'!C24) -> 
B26: =IF('Recipe Sheet'!B25="","",'Recipe Sheet'!B25) ->  | C26: =IF('Recipe Sheet'!C25="","",'Recipe Sheet'!C25) -> 
A27: =SUM(A7:A26) -> 0 | B27: Totals | C27: =SUM(C7:C26) -> 0 | D27: =SUM(D7:D26) -> 0 | E27: =IF(SUM(E7:E26)=0,"",SUM(E7:E26)) ->  | F27: =IF(SUM(F7:F26)=0,"",SUM(F7:F26)) ->  | G27: =IF(SUM(G7:G26)=0,"",SUM(G7:G26)) ->  | W27: =IF(SUM(W7:W26)=0,"",SUM(W7:W26)) ->  | X27: =IF(SUM(X7:X26)=0,"",SUM(X7:X26)) ->  | Y27: =IF(SUM(Y7:Y26)=0,"",SUM(Y7:Y26)) ->  | Z27: =IF(SUM(Z7:Z26)=0,"",SUM(Z7:Z26)) ->  | AA27: =IF(SUM(AA7:AA26)=0,"",SUM(AA7:AA26)) -> 
B28: Moles | C28: =SUM(E28:Y28) -> 0 | E28: =IF(E27="","",E27/E2) ->  | F28: =IF(F27="","",F27/F2) ->  | W28: =IF(W27="","",W27/W2) ->  | X28: =IF(X27="","",X27/X2) ->  | Y28: =IF(Y27="","",Y27/Y2) ->  | Z28: =IF(Z27="","",Z27/Z2) ->  | AA28: =IF(AA27="","",AA27/AA2) -> 
B29: RO:R2O3:RO2 Ratio | C29: =IF(OR(M34 = 0,M33 = "",M32 = "",M34 = ""),"",CONCATENATE("1.0 : ",ROUND(M32/M34,2)," : ",ROUND(M33/M34,2))) -> 
B30: R2O:RO Ratio | C30: =IF(OR(H53=0,H53="",I53="",I53=""),"",CONCATENATE("1.0 : ",ROUND(H53/I53,2),2)) -> 
B31: Composition | C31: wt | D31: moles | E31: CoTE | G31: Flux Oxides | H31: wt | I31: moles | K31: Misc | L31: wt | M31: moles
C52: =SUM(C32:C51) -> 0 | D52: =SUM(D32:D51) -> 0 | H52: =SUM(H32:H51) -> 0 | I52: =SUM(I32:I51) -> 0
G53: RO:R2O

Sheet Conversion Worksheet
A1: Conversion Worksheet
A4: Weight Unit Conversion
C5: in Kilograms | D5: in Pounds | E5: in Grams | F5: in Oz
A6: Unit | C6: =IF(B6<>"",1/VLOOKUP($B6,Lists!$E4:$J7,COLUMN(C:C)-COLUMN($A:A)),"") ->  | D6: =IF(C6<>"",1/VLOOKUP($B6,Lists!$E4:$J7,COLUMN(D:D)-COLUMN($A:B)),"") ->  | E6: =IF(D6<>"",1/VLOOKUP($B6,Lists!$E4:$J7,COLUMN(E:E)-COLUMN($A:C)),"") ->  | F6: =IF(E6<>"",1/VLOOKUP($B6,Lists!$E4:$J7,COLUMN(F:F)-COLUMN($A:D)),"") -> 
A7: Amount | C7: =IF(AND($B6<>"",$B7<>""),C6*$B7,"") ->  | D7: =IF(AND($B6<>"",$B7<>""),D6*$B7,"") -> 
A9: Liquid Unit Conversion
C10: in Liters | D10: in ml | E10: in Fl Oz | F10: in Pints
A11: Unit | C11: =IF(B11<>"",1/VLOOKUP($B11,Lists!$K4:$O7,COLUMN(C:C)-COLUMN($A:A)),"") ->  | D11: =IF(C11<>"",1/VLOOKUP($B11,Lists!$K4:$O7,COLUMN(D:D)-COLUMN($A:B)),"") ->  | E11: =IF(D11<>"",1/VLOOKUP($B11,Lists!$K4:$O7,COLUMN(E:E)-COLUMN($A:C)),"") ->  | F11: =IF(E11<>"",1/VLOOKUP($B11,Lists!$K4:$O7,COLUMN(F:F)-COLUMN($A:D)),"") -> 
A12: Amount | C12: =IF(AND($B11<>"",$B12<>""),C11*$B12,"") ->  | D12: =IF(AND($B11<>"",$B12<>""),D11*$B12,"") -> 
A14: Change Specific Gravity of Glaze | E14: Calc Sp Gr
A15: (Works with ounces or metric, only)
A16: Initial Volume | E16: Tare
A17: Initial Specific Gravity | E17: Water
A18: Target Specific Gravity | E18: Glaze
A19: Final Volume | C19: =IF(AND(C17<>"",C18<>"", C16<>"",C18>1),C16+C16*((C17-C18)/(C18-1)),"") ->  | E19: Sp Gr | F19: =IF(AND(F17<>"", F18<>"", F17<F18), (F18-F16)/(F17-F16),"") -> 
A20: Water to add | C20: =IF(AND(C16<>"", C19<>""),C19-C16,"") -> 

Sheet Lists (hidden)
A1: =IF(RawMaterialTable!$A1="","",RawMaterialTable!$A1) -> Materials
A2: =IF(RawMaterialTable!$A2="","",RawMaterialTable!$A2) -> 
E3: Units | F3: per kilo | G3: per Lb | H3: per gram | I3: per Ounce | J3: Same wt | K3: Volume | L3: per Liter | M3: per ml | N3: per Ounce | O3: per Pint | P3: Atmosphere | Q3: Batch_type
A4: =IF(INDEX(RawMaterialTable!$A$4:$A$223,ROW(A4)-3,1)="","",INDEX(RawMaterialTable!$A$4:$A$223,ROW(A4)-3,1)) -> Alumina Calcined | E4: Grams | F4: 1000 | G4: 454.5454545 | H4: 1 | I4: 28.40909091 | J4: ml | K4: Liters | L4: 1 | M4: 0.001 | N4: 0.02840909091 | O4: 0.4545454545 | P4: Oxidation | Q4: Batch by Wt
A5: =IF(INDEX(RawMaterialTable!$A$4:$A$223,ROW(A5)-3,1)="","",INDEX(RawMaterialTable!$A$4:$A$223,ROW(A5)-3,1)) -> Alumina Hydrate | E5: Kilograms | F5: 1 | G5: 0.4545454545 | H5: 0.001 | I5: 0.02840909091 | J5: Liters | K5: ml | L5: 1000 | M5: 1 | N5: 28.40909091 | O5: 454.5454545 | P5: Reduction | Q5: Batch by Vol
A6: =IF(INDEX(RawMaterialTable!$A$4:$A$223,ROW(A6)-3,1)="","",INDEX(RawMaterialTable!$A$4:$A$223,ROW(A6)-3,1)) -> A-3 Feldspar | E6: Ounces | F6: 35.2 | G6: 16 | H6: 0.0352 | I6: 1 | J6: Fl. Oz. | K6: Ounces | L6: 35.2 | M6: 0.0352 | N6: 1 | O6: 16
A7: =IF(INDEX(RawMaterialTable!$A$4:$A$223,ROW(A7)-3,1)="","",INDEX(RawMaterialTable!$A$4:$A$223,ROW(A7)-3,1)) -> AJAX Glomax Kaolin | E7: Pounds | F7: 2.2 | G7: 1 | H7: 0.0022 | I7: 0.0625 | J7: Pints | K7: Pints | L7: 2.2 | M7: 0.0022 | N7: 0.0625 | O7: 1
A8: =IF(INDEX(RawMaterialTable!$A$4:$A$223,ROW(A8)-3,1)="","",INDEX(RawMaterialTable!$A$4:$A$223,ROW(A8)-3,1)) -> AJAX P Kaolin
A9: =IF(INDEX(RawMaterialTable!$A$4:$A$223,ROW(A9)-3,1)="","",INDEX(RawMaterialTable!$A$4:$A$223,ROW(A9)-3,1)) -> Albany Slip
A10: =IF(INDEX(RawMaterialTable!$A$4:$A$223,ROW(A10)-3,1)="","",INDEX(RawMaterialTable!$A$4:$A$223,ROW(A10)-3,1)) -> Alberta Slip | E10: Cone Values | H10: Alphabet | J10: Composition category | M10: Graph Plot Support
A11: =IF(INDEX(RawMaterialTable!$A$4:$A$223,ROW(A11)-3,1)="","",INDEX(RawMaterialTable!$A$4:$A$223,ROW(A11)-3,1)) -> Alberta Slip II | E11: 020 | H11: A | J11: Weight
A12: =IF(INDEX(RawMaterialTable!$A$4:$A$223,ROW(A12)-3,1)="","",INDEX(RawMaterialTable!$A$4:$A$223,ROW(A12)-3,1)) -> Anhydrous Borax | E12: 019 | H12: B | J12: Moles
A13: =IF(INDEX(RawMaterialTable!$A$4:$A$223,ROW(A13)-3,1)="","",INDEX(RawMaterialTable!$A$4:$A$223,ROW(A13)-3,1)) -> Ash, Oak | E13: 018 | H13: C
A14: =IF(INDEX(RawMaterialTable!$A$4:$A$223,ROW(A14)-3,1)="","",INDEX(RawMaterialTable!$A$4:$A$223,ROW(A14)-3,1)) -> Ash, Hardwood | E14: 017 | H14: D | N14: Slope | O14: Incr | P14: Zone 1 | R14: Line Data
A15: =IF(INDEX(RawMaterialTable!$A$4:$A$223,ROW(A15)-3,1)="","",INDEX(RawMaterialTable!$A$4:$A$223,ROW(A15)-3,1)) -> Ash, Pine | E15: 016 | H15: E | N15: 9 | O15: 0.01 | P15: 0.26 | Q15: 2.41 | R15: 0 | S15: 0
A16: =IF(INDEX(RawMaterialTable!$A$4:$A$223,ROW(A16)-3,1)="","",INDEX(RawMaterialTable!$A$4:$A$223,ROW(A16)-3,1)) -> Ash, softwood | E16: 015 | H16: F | N16: Eutectic | P16: 0.205 | Q16: 3 | R16: =R15+O$15 -> 0.01 | S16: =R16*N$15 -> 0.09
A17: =IF(INDEX(RawMaterialTable!$A$4:$A$223,ROW(A17)-3,1)="","",INDEX(RawMaterialTable!$A$4:$A$223,ROW(A17)-3,1)) -> BALL CLAY | E17: 014 | H17: G | N17: 0.3 | O17: 3 | P17: 0.393 | Q17: 3 | R17: 0.02 | S17: 0.18
A18: =IF(INDEX(RawMaterialTable!$A$4:$A$223,ROW(A18)-3,1)="","",INDEX(RawMaterialTable!$A$4:$A$223,ROW(A18)-3,1)) -> Baking Soda | E18: 013 | H18: H | P18: 0.2 | Q18: 2.7 | R18: 0.03 | S18: 0.27
A19: =IF(INDEX(RawMaterialTable!$A$4:$A$223,ROW(A19)-3,1)="","",INDEX(RawMaterialTable!$A$4:$A$223,ROW(A19)-3,1)) -> Barium Carbonate | E19: 012 | H19: I | N19: Zone 3 | P19: 0.37 | Q19: 2.74 | R19: 0.04 | S19: 0.36
A20: =IF(INDEX(RawMaterialTable!$A$4:$A$223,ROW(A20)-3,1)="","",INDEX(RawMaterialTable!$A$4:$A$223,ROW(A20)-3,1)) -> Barnard Clay | E20: 011 | H20: J | N20: 0.4 | O20: 2 | P20: 0.22 | Q20: 2.5 | R20: 0.05 | S20: 0.45
A21: =IF(INDEX(RawMaterialTable!$A$4:$A$223,ROW(A21)-3,1)="","",INDEX(RawMaterialTable!$A$4:$A$223,ROW(A21)-3,1)) -> Bell Dark Ball Clay | E21: 010 | H21: K | N21: 0.1 | O21: 3.2 | P21: 0.34 | Q21: 2.55 | R21: 0.06 | S21: 0.54
A22: =IF(INDEX(RawMaterialTable!$A$4:$A$223,ROW(A22)-3,1)="","",INDEX(RawMaterialTable!$A$4:$A$223,ROW(A22)-3,1)) -> Bell Feldspar | E22: 09 | H22: L | N22: 0.205 | O22: 1.74 | P22: 0.3 | Q22: 2.45 | R22: 0.07 | S22: 0.63
A23: =IF(INDEX(RawMaterialTable!$A$4:$A$223,ROW(A23)-3,1)="","",INDEX(RawMaterialTable!$A$4:$A$223,ROW(A23)-3,1)) -> Bentolite L | E23: 08 | H23: M | N23: 0.595 | O23: 3 | P23: 0.4 | Q23: 3.25 | R23: 0.08 | S23: 0.72
A24: =IF(INDEX(RawMaterialTable!$A$4:$A$223,ROW(A24)-3,1)="","",INDEX(RawMaterialTable!$A$4:$A$223,ROW(A24)-3,1)) -> Bentonite | E24: 07 | H24: N | N24: 0.5 | O24: 5.3 | P24: 0.24 | Q24: 3.25 | R24: 0.09 | S24: 0.81
A25: =IF(INDEX(RawMaterialTable!$A$4:$A$223,ROW(A25)-3,1)="","",INDEX(RawMaterialTable!$A$4:$A$223,ROW(A25)-3,1)) -> Bone Ash | E25: 06 | H25: O | N25: 0.4 | O25: 5.2 | P25: 0.29 | Q25: 3.5 | R25: 0.1 | S25: 0.9
A26: =IF(INDEX(RawMaterialTable!$A$4:$A$223,ROW(A26)-3,1)="","",INDEX(RawMaterialTable!$A$4:$A$223,ROW(A26)-3,1)) -> Borax | E26: 05 | H26: P | N26: 0.3 | O26: 4.85 | P26: 0.384 | Q26: 3.47 | R26: 0.11 | S26: 0.99
A27: =IF(INDEX(RawMaterialTable!$A$4:$A$223,ROW(A27)-3,1)="","",INDEX(RawMaterialTable!$A$4:$A$223,ROW(A27)-3,1)) -> Borax 5 Mol | E27: 04 | H27: Q | N27: 0.2 | O27: 4.4 | P27: 0.344 | Q27: 3.57 | R27: 0.12 | S27: 1.08
A28: =IF(INDEX(RawMaterialTable!$A$4:$A$223,ROW(A28)-3,1)="","",INDEX(RawMaterialTable!$A$4:$A$223,ROW(A28)-3,1)) -> Boric Acid | E28: 03 | H28: R | N28: 0.135 | O28: 3.7 | P28: Zone 2 | R28: 0.13 | S28: 1.17
A29: =IF(INDEX(RawMaterialTable!$A$4:$A$223,ROW(A29)-3,1)="","",INDEX(RawMaterialTable!$A$4:$A$223,ROW(A29)-3,1)) -> Buckingham Feldspar | E29: 02 | H29: S | N29: 0.1 | O29: 2.3 | P29: 0.2 | Q29: 1.965 | R29: 0.14 | S29: 1.26
A30: =IF(INDEX(RawMaterialTable!$A$4:$A$223,ROW(A30)-3,1)="","",INDEX(RawMaterialTable!$A$4:$A$223,ROW(A30)-3,1)) -> Boraq 1 | E30: 01 | H30: T | N30: 0.09 | O30: 2.65 | P30: 0.143 | Q30: 2.5 | R30: 0.15 | S30: 1.35
A31: =IF(INDEX(RawMaterialTable!$A$4:$A$223,ROW(A31)-3,1)="","",INDEX(RawMaterialTable!$A$4:$A$223,ROW(A31)-3,1)) -> Boraq 2 | E31: 1 | H31: U | N31: 0.5 | O31: 2.45 | P31: 0.155 | Q31: 3 | R31: 0.16 | S31: 1.44
A32: =IF(INDEX(RawMaterialTable!$A$4:$A$223,ROW(A32)-3,1)="","",INDEX(RawMaterialTable!$A$4:$A$223,ROW(A32)-3,1)) -> Boraq 3 | E32: 2 | H32: V | N32: 0.3 | O32: 1.75 | P32: 0.17 | Q32: 2.19 | R32: 0.17 | S32: 1.53
A33: =IF(INDEX(RawMaterialTable!$A$4:$A$223,ROW(A33)-3,1)="","",INDEX(RawMaterialTable!$A$4:$A$223,ROW(A33)-3,1)) -> Cadycal | E33: 3 | H33: W | N33: 0.13 | O33: 1.95 | P33: 0.2 | Q33: 3.5 | R33: 0.18 | S33: 1.62
A34: =IF(INDEX(RawMaterialTable!$A$4:$A$223,ROW(A34)-3,1)="","",INDEX(RawMaterialTable!$A$4:$A$223,ROW(A34)-3,1)) -> Calcined Kaolin | E34: 4 | H34: X | N34: 0.66 | O34: 4.3 | P34: 0.23 | Q34: 3.75 | R34: 0.19 | S34: 1.71
A35: =IF(INDEX(RawMaterialTable!$A$4:$A$223,ROW(A35)-3,1)="","",INDEX(RawMaterialTable!$A$4:$A$223,ROW(A35)-3,1)) -> Calcium Borate | E35: 5 | H35: Y | N35: 0.64 | O35: 4.8 | P35: 0.26 | Q35: 1.95 | R35: 0.2 | S35: 1.8
A36: =IF(INDEX(RawMaterialTable!$A$4:$A$223,ROW(A36)-3,1)="","",INDEX(RawMaterialTable!$A$4:$A$223,ROW(A36)-3,1)) -> Calcium Carbonate | E36: 6 | H36: Z | N36: 0.6 | O36: 5.15 | P36: 0.275 | Q36: 4 | R36: 0.21 | S36: 1.89
A37: =IF(INDEX(RawMaterialTable!$A$4:$A$223,ROW(A37)-3,1)="","",INDEX(RawMaterialTable!$A$4:$A$223,ROW(A37)-3,1)) -> Calcium Feldspar | E37: 7 | N37: 0.64 | O37: 3.6 | P37: 0.3 | Q37: 2.05 | R37: 0.22 | S37: 1.98
A38: =IF(INDEX(RawMaterialTable!$A$4:$A$223,ROW(A38)-3,1)="","",INDEX(RawMaterialTable!$A$4:$A$223,ROW(A38)-3,1)) -> Calvert Clay | E38: 8 | P38: 0.335 | Q38: 4.3 | R38: 0.23 | S38: 2.07
A39: =IF(INDEX(RawMaterialTable!$A$4:$A$223,ROW(A39)-3,1)="","",INDEX(RawMaterialTable!$A$4:$A$223,ROW(A39)-3,1)) -> Cedar Heights Fire | E39: 9 | P39: 0.35 | Q39: 2.22 | R39: 0.24 | S39: 2.16
A40: =IF(INDEX(RawMaterialTable!$A$4:$A$223,ROW(A40)-3,1)="","",INDEX(RawMaterialTable!$A$4:$A$223,ROW(A40)-3,1)) -> Chesterfield Spar | E40: 10 | P40: 0.4 | Q40: 4.4 | R40: 0.25 | S40: 2.25
A41: =IF(INDEX(RawMaterialTable!$A$4:$A$223,ROW(A41)-3,1)="","",INDEX(RawMaterialTable!$A$4:$A$223,ROW(A41)-3,1)) -> China Clay | E41: 11 | P41: 0.4 | Q41: 2.42 | R41: 0.26 | S41: 2.34
A42: =IF(INDEX(RawMaterialTable!$A$4:$A$223,ROW(A42)-3,1)="","",INDEX(RawMaterialTable!$A$4:$A$223,ROW(A42)-3,1)) -> Chromium Oxide | E42: 12 | P42: 0.44 | Q42: 4.4 | R42: 0.27 | S42: 2.43
A43: =IF(INDEX(RawMaterialTable!$A$4:$A$223,ROW(A43)-3,1)="","",INDEX(RawMaterialTable!$A$4:$A$223,ROW(A43)-3,1)) -> CMC GUM | P43: 0.45 | Q43: 2.75 | R43: 0.28 | S43: 2.52
A44: =IF(INDEX(RawMaterialTable!$A$4:$A$223,ROW(A44)-3,1)="","",INDEX(RawMaterialTable!$A$4:$A$223,ROW(A44)-3,1)) -> ABC Colemanite | P44: 0.485 | Q44: 4.3 | R44: 0.29 | S44: 2.61
A45: =IF(INDEX(RawMaterialTable!$A$4:$A$223,ROW(A45)-3,1)="","",INDEX(RawMaterialTable!$A$4:$A$223,ROW(A45)-3,1)) -> Colemanite | P45: 0.5 | Q45: 3.15 | R45: 0.3 | S45: 2.7
A46: =IF(INDEX(RawMaterialTable!$A$4:$A$223,ROW(A46)-3,1)="","",INDEX(RawMaterialTable!$A$4:$A$223,ROW(A46)-3,1)) -> Cobalt Carbonate | P46: 0.52 | Q46: 4 | R46: 0.31 | S46: 2.79
A47: =IF(INDEX(RawMaterialTable!$A$4:$A$223,ROW(A47)-3,1)="","",INDEX(RawMaterialTable!$A$4:$A$223,ROW(A47)-3,1)) -> Cobalt Oxide | P47: 0.525 | Q47: 3.6 | R47: 0.32 | S47: 2.88
A48: =IF(INDEX(RawMaterialTable!$A$4:$A$223,ROW(A48)-3,1)="","",INDEX(RawMaterialTable!$A$4:$A$223,ROW(A48)-3,1)) -> Copper Carbonate | R48: =R47+O$15 -> 0.33 | S48: =R48*N$15 -> 2.97
A49: =IF(INDEX(RawMaterialTable!$A$4:$A$223,ROW(A49)-3,1)="","",INDEX(RawMaterialTable!$A$4:$A$223,ROW(A49)-3,1)) -> Copper (I)Oxide - Red | R49: 0.34 | S49: 3.06
A50: =IF(INDEX(RawMaterialTable!$A$4:$A$223,ROW(A50)-3,1)="","",INDEX(RawMaterialTable!$A$4:$A$223,ROW(A50)-3,1)) -> Copper (II)Oxide - Black | R50: 0.35 | S50: 3.15
A51: =IF(INDEX(RawMaterialTable!$A$4:$A$223,ROW(A51)-3,1)="","",INDEX(RawMaterialTable!$A$4:$A$223,ROW(A51)-3,1)) -> Cornwall Stone | R51: 0.36 | S51: 3.24
A52: =IF(INDEX(RawMaterialTable!$A$4:$A$223,ROW(A52)-3,1)="","",INDEX(RawMaterialTable!$A$4:$A$223,ROW(A52)-3,1)) -> Cryolite | R52: 0.37 | S52: 3.33
A53: =IF(INDEX(RawMaterialTable!$A$4:$A$223,ROW(A53)-3,1)="","",INDEX(RawMaterialTable!$A$4:$A$223,ROW(A53)-3,1)) -> Custer Feldspar | R53: 0.38 | S53: 3.42
A54: =IF(INDEX(RawMaterialTable!$A$4:$A$223,ROW(A54)-3,1)="","",INDEX(RawMaterialTable!$A$4:$A$223,ROW(A54)-3,1)) -> Diamond Kaolin | R54: 0.39 | S54: 3.51
A55: =IF(INDEX(RawMaterialTable!$A$4:$A$223,ROW(A55)-3,1)="","",INDEX(RawMaterialTable!$A$4:$A$223,ROW(A55)-3,1)) -> Dolomite | R55: 0.4 | S55: 3.6
A56: =IF(INDEX(RawMaterialTable!$A$4:$A$223,ROW(A56)-3,1)="","",INDEX(RawMaterialTable!$A$4:$A$223,ROW(A56)-3,1)) -> English Kaolin | R56: 0.41 | S56: 3.69
A57: =IF(INDEX(RawMaterialTable!$A$4:$A$223,ROW(A57)-3,1)="","",INDEX(RawMaterialTable!$A$4:$A$223,ROW(A57)-3,1)) -> EPK Kaolin | R57: 0.42 | S57: 3.78
A58: =IF(INDEX(RawMaterialTable!$A$4:$A$223,ROW(A58)-3,1)="","",INDEX(RawMaterialTable!$A$4:$A$223,ROW(A58)-3,1)) -> Eureka Feldspar | R58: 0.43 | S58: 3.87
A59: =IF(INDEX(RawMaterialTable!$A$4:$A$223,ROW(A59)-3,1)="","",INDEX(RawMaterialTable!$A$4:$A$223,ROW(A59)-3,1)) -> F-4 Feldspar | R59: 0.44 | S59: 3.96
A60: =IF(INDEX(RawMaterialTable!$A$4:$A$223,ROW(A60)-3,1)="","",INDEX(RawMaterialTable!$A$4:$A$223,ROW(A60)-3,1)) -> Fireclay, Hawthorne Missouri | R60: 0.45 | S60: 4.05
A61: =IF(INDEX(RawMaterialTable!$A$4:$A$223,ROW(A61)-3,1)="","",INDEX(RawMaterialTable!$A$4:$A$223,ROW(A61)-3,1)) -> Fireclay, AP Green Missouri | R61: 0.46 | S61: 4.14
A62: =IF(INDEX(RawMaterialTable!$A$4:$A$223,ROW(A62)-3,1)="","",INDEX(RawMaterialTable!$A$4:$A$223,ROW(A62)-3,1)) -> Flint | R62: 0.47 | S62: 4.23
A63: =IF(INDEX(RawMaterialTable!$A$4:$A$223,ROW(A63)-3,1)="","",INDEX(RawMaterialTable!$A$4:$A$223,ROW(A63)-3,1)) -> Fluorspar | R63: 0.48 | S63: 4.32
A64: =IF(INDEX(RawMaterialTable!$A$4:$A$223,ROW(A64)-3,1)="","",INDEX(RawMaterialTable!$A$4:$A$223,ROW(A64)-3,1)) -> FRIT 13 | R64: 0.49 | S64: 4.41
A65: =IF(INDEX(RawMaterialTable!$A$4:$A$223,ROW(A65)-3,1)="","",INDEX(RawMaterialTable!$A$4:$A$223,ROW(A65)-3,1)) -> FRIT 14 | R65: 0.5 | S65: 4.5
A66: =IF(INDEX(RawMaterialTable!$A$4:$A$223,ROW(A66)-3,1)="","",INDEX(RawMaterialTable!$A$4:$A$223,ROW(A66)-3,1)) -> FRIT 22 | R66: 0.51 | S66: 4.59
A67: =IF(INDEX(RawMaterialTable!$A$4:$A$223,ROW(A67)-3,1)="","",INDEX(RawMaterialTable!$A$4:$A$223,ROW(A67)-3,1)) -> FRIT 240 | R67: 0.52 | S67: 4.68
A68: =IF(INDEX(RawMaterialTable!$A$4:$A$223,ROW(A68)-3,1)="","",INDEX(RawMaterialTable!$A$4:$A$223,ROW(A68)-3,1)) -> FRIT 266 | R68: 0.53 | S68: 4.77
A69: =IF(INDEX(RawMaterialTable!$A$4:$A$223,ROW(A69)-3,1)="","",INDEX(RawMaterialTable!$A$4:$A$223,ROW(A69)-3,1)) -> FRIT 267 | R69: 0.54 | S69: 4.86
A70: =IF(INDEX(RawMaterialTable!$A$4:$A$223,ROW(A70)-3,1)="","",INDEX(RawMaterialTable!$A$4:$A$223,ROW(A70)-3,1)) -> FRIT 285 | R70: 0.55 | S70: 4.95
A71: =IF(INDEX(RawMaterialTable!$A$4:$A$223,ROW(A71)-3,1)="","",INDEX(RawMaterialTable!$A$4:$A$223,ROW(A71)-3,1)) -> FRIT 3110 | R71: 0.56 | S71: 5.04
A72: =IF(INDEX(RawMaterialTable!$A$4:$A$223,ROW(A72)-3,1)="","",INDEX(RawMaterialTable!$A$4:$A$223,ROW(A72)-3,1)) -> FRIT 3124 | R72: 0.57 | S72: 5.13
A73: =IF(INDEX(RawMaterialTable!$A$4:$A$223,ROW(A73)-3,1)="","",INDEX(RawMaterialTable!$A$4:$A$223,ROW(A73)-3,1)) -> FRIT 3134 | R73: 0.58 | S73: 5.22
A74: =IF(INDEX(RawMaterialTable!$A$4:$A$223,ROW(A74)-3,1)="","",INDEX(RawMaterialTable!$A$4:$A$223,ROW(A74)-3,1)) -> FRIT 316 | R74: 0.59 | S74: 5.31
A75: =IF(INDEX(RawMaterialTable!$A$4:$A$223,ROW(A75)-3,1)="","",INDEX(RawMaterialTable!$A$4:$A$223,ROW(A75)-3,1)) -> FRIT 3195 | R75: 0.6 | S75: 5.4
A76: =IF(INDEX(RawMaterialTable!$A$4:$A$223,ROW(A76)-3,1)="","",INDEX(RawMaterialTable!$A$4:$A$223,ROW(A76)-3,1)) -> FRIT 3211 | R76: 0.61 | S76: 5.49
A77: =IF(INDEX(RawMaterialTable!$A$4:$A$223,ROW(A77)-3,1)="","",INDEX(RawMaterialTable!$A$4:$A$223,ROW(A77)-3,1)) -> FRIT 3249 | R77: 0.62 | S77: 5.58
A78: =IF(INDEX(RawMaterialTable!$A$4:$A$223,ROW(A78)-3,1)="","",INDEX(RawMaterialTable!$A$4:$A$223,ROW(A78)-3,1)) -> FRIT 3269 | R78: 0.63 | S78: 5.67
A79: =IF(INDEX(RawMaterialTable!$A$4:$A$223,ROW(A79)-3,1)="","",INDEX(RawMaterialTable!$A$4:$A$223,ROW(A79)-3,1)) -> FRIT 3278 | R79: 0.64 | S79: 5.76
A80: =IF(INDEX(RawMaterialTable!$A$4:$A$223,ROW(A80)-3,1)="","",INDEX(RawMaterialTable!$A$4:$A$223,ROW(A80)-3,1)) -> FRIT 3289 | R80: =R79+O$15 -> 0.65 | S80: =R80*N$15 -> 5.85
A81: =IF(INDEX(RawMaterialTable!$A$4:$A$223,ROW(A81)-3,1)="","",INDEX(RawMaterialTable!$A$4:$A$223,ROW(A81)-3,1)) -> FRIT 3300 | R81: 0.66 | S81: 5.94
A82: =IF(INDEX(RawMaterialTable!$A$4:$A$223,ROW(A82)-3,1)="","",INDEX(RawMaterialTable!$A$4:$A$223,ROW(A82)-3,1)) -> FRIT 3304 | R82: 0.67 | S82: 6.03
A83: =IF(INDEX(RawMaterialTable!$A$4:$A$223,ROW(A83)-3,1)="","",INDEX(RawMaterialTable!$A$4:$A$223,ROW(A83)-3,1)) -> FRIT 3327 | R83: 0.68 | S83: 6.12
A84: =IF(INDEX(RawMaterialTable!$A$4:$A$223,ROW(A84)-3,1)="","",INDEX(RawMaterialTable!$A$4:$A$223,ROW(A84)-3,1)) -> FRIT 3419 | R84: 0.69 | S84: 6.21
A85: =IF(INDEX(RawMaterialTable!$A$4:$A$223,ROW(A85)-3,1)="","",INDEX(RawMaterialTable!$A$4:$A$223,ROW(A85)-3,1)) -> FRIT 3467 | R85: 0.7 | S85: 6.3
A86: =IF(INDEX(RawMaterialTable!$A$4:$A$223,ROW(A86)-3,1)="","",INDEX(RawMaterialTable!$A$4:$A$223,ROW(A86)-3,1)) -> FRIT 3481 | R86: 0.71 | S86: 6.39
A87: =IF(INDEX(RawMaterialTable!$A$4:$A$223,ROW(A87)-3,1)="","",INDEX(RawMaterialTable!$A$4:$A$223,ROW(A87)-3,1)) -> FRIT 349 | R87: 0.72 | S87: 6.48
A88: =IF(INDEX(RawMaterialTable!$A$4:$A$223,ROW(A88)-3,1)="","",INDEX(RawMaterialTable!$A$4:$A$223,ROW(A88)-3,1)) -> FRIT 3602 | R88: 0.73 | S88: 6.57
A89: =IF(INDEX(RawMaterialTable!$A$4:$A$223,ROW(A89)-3,1)="","",INDEX(RawMaterialTable!$A$4:$A$223,ROW(A89)-3,1)) -> FRIT 439 | R89: 0.74 | S89: 6.66
A90: =IF(INDEX(RawMaterialTable!$A$4:$A$223,ROW(A90)-3,1)="","",INDEX(RawMaterialTable!$A$4:$A$223,ROW(A90)-3,1)) -> FRIT 54 | R90: 0.75 | S90: 6.75
A91: =IF(INDEX(RawMaterialTable!$A$4:$A$223,ROW(A91)-3,1)="","",INDEX(RawMaterialTable!$A$4:$A$223,ROW(A91)-3,1)) -> FRIT 67 | R91: 0.76 | S91: 6.84
A92: =IF(INDEX(RawMaterialTable!$A$4:$A$223,ROW(A92)-3,1)="","",INDEX(RawMaterialTable!$A$4:$A$223,ROW(A92)-3,1)) -> FRIT 83 | R92: 0.77 | S92: 6.93
A93: =IF(INDEX(RawMaterialTable!$A$4:$A$223,ROW(A93)-3,1)="","",INDEX(RawMaterialTable!$A$4:$A$223,ROW(A93)-3,1)) -> FRIT 938 | R93: 0.78 | S93: 7.02
A94: =IF(INDEX(RawMaterialTable!$A$4:$A$223,ROW(A94)-3,1)="","",INDEX(RawMaterialTable!$A$4:$A$223,ROW(A94)-3,1)) -> FRIT B-40-C | R94: 0.79 | S94: 7.11
A95: =IF(INDEX(RawMaterialTable!$A$4:$A$223,ROW(A95)-3,1)="","",INDEX(RawMaterialTable!$A$4:$A$223,ROW(A95)-3,1)) -> FRIT B-300 | R95: 0.8 | S95: 7.2
A96: =IF(INDEX(RawMaterialTable!$A$4:$A$223,ROW(A96)-3,1)="","",INDEX(RawMaterialTable!$A$4:$A$223,ROW(A96)-3,1)) -> FRIT CC-250 | R96: 0.81 | S96: 7.29
A97: =IF(INDEX(RawMaterialTable!$A$4:$A$223,ROW(A97)-3,1)="","",INDEX(RawMaterialTable!$A$4:$A$223,ROW(A97)-3,1)) -> FRIT CC-257
A98: =IF(INDEX(RawMaterialTable!$A$4:$A$223,ROW(A98)-3,1)="","",INDEX(RawMaterialTable!$A$4:$A$223,ROW(A98)-3,1)) -> FRIT F-13
A99: =IF(INDEX(RawMaterialTable!$A$4:$A$223,ROW(A99)-3,1)="","",INDEX(RawMaterialTable!$A$4:$A$223,ROW(A99)-3,1)) -> FRIT F-19
A100: =IF(INDEX(RawMaterialTable!$A$4:$A$223,ROW(A100)-3,1)="","",INDEX(RawMaterialTable!$A$4:$A$223,ROW(A100)-3,1)) -> FRIT F-2
A101: =IF(INDEX(RawMaterialTable!$A$4:$A$223,ROW(A101)-3,1)="","",INDEX(RawMaterialTable!$A$4:$A$223,ROW(A101)-3,1)) -> FRIT F-34
A102: =IF(INDEX(RawMaterialTable!$A$4:$A$223,ROW(A102)-3,1)="","",INDEX(RawMaterialTable!$A$4:$A$223,ROW(A102)-3,1)) -> FRIT F-60
A103: =IF(INDEX(RawMaterialTable!$A$4:$A$223,ROW(A103)-3,1)="","",INDEX(RawMaterialTable!$A$4:$A$223,ROW(A103)-3,1)) -> FRIT F-75
A104: =IF(INDEX(RawMaterialTable!$A$4:$A$223,ROW(A104)-3,1)="","",INDEX(RawMaterialTable!$A$4:$A$223,ROW(A104)-3,1)) -> FRIT FZ-25
A105: =IF(INDEX(RawMaterialTable!$A$4:$A$223,ROW(A105)-3,1)="","",INDEX(RawMaterialTable!$A$4:$A$223,ROW(A105)-3,1)) -> FRIT F-367
A106: =IF(INDEX(RawMaterialTable!$A$4:$A$223,ROW(A106)-3,1)="","",INDEX(RawMaterialTable!$A$4:$A$223,ROW(A106)-3,1)) -> FRIT GF-111
A107: =IF(INDEX(RawMaterialTable!$A$4:$A$223,ROW(A107)-3,1)="","",INDEX(RawMaterialTable!$A$4:$A$223,ROW(A107)-3,1)) -> FRIT GF-113
A108: =IF(INDEX(RawMaterialTable!$A$4:$A$223,ROW(A108)-3,1)="","",INDEX(RawMaterialTable!$A$4:$A$223,ROW(A108)-3,1)) -> FRIT GF-115
A109: =IF(INDEX(RawMaterialTable!$A$4:$A$223,ROW(A109)-3,1)="","",INDEX(RawMaterialTable!$A$4:$A$223,ROW(A109)-3,1)) -> FRIT GF-134
A110: =IF(INDEX(RawMaterialTable!$A$4:$A$223,ROW(A110)-3,1)="","",INDEX(RawMaterialTable!$A$4:$A$223,ROW(A110)-3,1)) -> FRIT P-25
A111: =IF(INDEX(RawMaterialTable!$A$4:$A$223,ROW(A111)-3,1)="","",INDEX(RawMaterialTable!$A$4:$A$223,ROW(A111)-3,1)) -> FRIT P-2950 (Lead Bisilicate)
A112: =IF(INDEX(RawMaterialTable!$A$4:$A$223,ROW(A112)-3,1)="","",INDEX(RawMaterialTable!$A$4:$A$223,ROW(A112)-3,1)) -> FRIT P-311
A113: =IF(INDEX(RawMaterialTable!$A$4:$A$223,ROW(A113)-3,1)="","",INDEX(RawMaterialTable!$A$4:$A$223,ROW(A113)-3,1)) -> FRIT P-54
A114: =IF(INDEX(RawMaterialTable!$A$4:$A$223,ROW(A114)-3,1)="","",INDEX(RawMaterialTable!$A$4:$A$223,ROW(A114)-3,1)) -> G-200 Feldspar
A115: =IF(INDEX(RawMaterialTable!$A$4:$A$223,ROW(A115)-3,1)="","",INDEX(RawMaterialTable!$A$4:$A$223,ROW(A115)-3,1)) -> G-200HP Feldspar
A116: =IF(INDEX(RawMaterialTable!$A$4:$A$223,ROW(A116)-3,1)="","",INDEX(RawMaterialTable!$A$4:$A$223,ROW(A116)-3,1)) -> Gerstley Borate
A117: =IF(INDEX(RawMaterialTable!$A$4:$A$223,ROW(A117)-3,1)="","",INDEX(RawMaterialTable!$A$4:$A$223,ROW(A117)-3,1)) -> Gillespie Borate
A118: =IF(INDEX(RawMaterialTable!$A$4:$A$223,ROW(A118)-3,1)="","",INDEX(RawMaterialTable!$A$4:$A$223,ROW(A118)-3,1)) -> GK 129 Bentonite
A119: =IF(INDEX(RawMaterialTable!$A$4:$A$223,ROW(A119)-3,1)="","",INDEX(RawMaterialTable!$A$4:$A$223,ROW(A119)-3,1)) -> Glacier 200 Talc
A120: =IF(INDEX(RawMaterialTable!$A$4:$A$223,ROW(A120)-3,1)="","",INDEX(RawMaterialTable!$A$4:$A$223,ROW(A120)-3,1)) -> Glass Cullet
A121: =IF(INDEX(RawMaterialTable!$A$4:$A$223,ROW(A121)-3,1)="","",INDEX(RawMaterialTable!$A$4:$A$223,ROW(A121)-3,1)) -> Gleason Ball Clay
A122: =IF(INDEX(RawMaterialTable!$A$4:$A$223,ROW(A122)-3,1)="","",INDEX(RawMaterialTable!$A$4:$A$223,ROW(A122)-3,1)) -> Goldart
A123: =IF(INDEX(RawMaterialTable!$A$4:$A$223,ROW(A123)-3,1)="","",INDEX(RawMaterialTable!$A$4:$A$223,ROW(A123)-3,1)) -> Grolleg Kaolin
A124: =IF(INDEX(RawMaterialTable!$A$4:$A$223,ROW(A124)-3,1)="","",INDEX(RawMaterialTable!$A$4:$A$223,ROW(A124)-3,1)) -> Gunheath Kaolin
A125: =IF(INDEX(RawMaterialTable!$A$4:$A$223,ROW(A125)-3,1)="","",INDEX(RawMaterialTable!$A$4:$A$223,ROW(A125)-3,1)) -> Hectalite
A126: =IF(INDEX(RawMaterialTable!$A$4:$A$223,ROW(A126)-3,1)="","",INDEX(RawMaterialTable!$A$4:$A$223,ROW(A126)-3,1)) -> Helmer Kaolin
A127: =IF(INDEX(RawMaterialTable!$A$4:$A$223,ROW(A127)-3,1)="","",INDEX(RawMaterialTable!$A$4:$A$223,ROW(A127)-3,1)) -> Ilmenite
A128: =IF(INDEX(RawMaterialTable!$A$4:$A$223,ROW(A128)-3,1)="","",INDEX(RawMaterialTable!$A$4:$A$223,ROW(A128)-3,1)) -> Iron Oxide Black
A129: =IF(INDEX(RawMaterialTable!$A$4:$A$223,ROW(A129)-3,1)="","",INDEX(RawMaterialTable!$A$4:$A$223,ROW(A129)-3,1)) -> Iron Oxide Red
A130: =IF(INDEX(RawMaterialTable!$A$4:$A$223,ROW(A130)-3,1)="","",INDEX(RawMaterialTable!$A$4:$A$223,ROW(A130)-3,1)) -> Jackson Ball Clay
A131: =IF(INDEX(RawMaterialTable!$A$4:$A$223,ROW(A131)-3,1)="","",INDEX(RawMaterialTable!$A$4:$A$223,ROW(A131)-3,1)) -> Jasper Slip
A132: =IF(INDEX(RawMaterialTable!$A$4:$A$223,ROW(A132)-3,1)="","",INDEX(RawMaterialTable!$A$4:$A$223,ROW(A132)-3,1)) -> Jordan Fireclay
A133: =IF(INDEX(RawMaterialTable!$A$4:$A$223,ROW(A133)-3,1)="","",INDEX(RawMaterialTable!$A$4:$A$223,ROW(A133)-3,1)) -> K&T Special
A134: =IF(INDEX(RawMaterialTable!$A$4:$A$223,ROW(A134)-3,1)="","",INDEX(RawMaterialTable!$A$4:$A$223,ROW(A134)-3,1)) -> K-200 Feldspar
A135: =IF(INDEX(RawMaterialTable!$A$4:$A$223,ROW(A135)-3,1)="","",INDEX(RawMaterialTable!$A$4:$A$223,ROW(A135)-3,1)) -> Kaolin
A136: =IF(INDEX(RawMaterialTable!$A$4:$A$223,ROW(A136)-3,1)="","",INDEX(RawMaterialTable!$A$4:$A$223,ROW(A136)-3,1)) -> Kaopaque 20 Kaolin
A137: =IF(INDEX(RawMaterialTable!$A$4:$A$223,ROW(A137)-3,1)="","",INDEX(RawMaterialTable!$A$4:$A$223,ROW(A137)-3,1)) -> Kingman Feldspar
A138: =IF(INDEX(RawMaterialTable!$A$4:$A$223,ROW(A138)-3,1)="","",INDEX(RawMaterialTable!$A$4:$A$223,ROW(A138)-3,1)) -> Kentucky OM #4 Ball Clay
A139: =IF(INDEX(RawMaterialTable!$A$4:$A$223,ROW(A139)-3,1)="","",INDEX(RawMaterialTable!$A$4:$A$223,ROW(A139)-3,1)) -> KTS-2 Ball Clay
A140: =IF(INDEX(RawMaterialTable!$A$4:$A$223,ROW(A140)-3,1)="","",INDEX(RawMaterialTable!$A$4:$A$223,ROW(A140)-3,1)) -> KY Special
A141: =IF(INDEX(RawMaterialTable!$A$4:$A$223,ROW(A141)-3,1)="","",INDEX(RawMaterialTable!$A$4:$A$223,ROW(A141)-3,1)) -> Kyanite
A142: =IF(INDEX(RawMaterialTable!$A$4:$A$223,ROW(A142)-3,1)="","",INDEX(RawMaterialTable!$A$4:$A$223,ROW(A142)-3,1)) -> Laguna Borate
A143: =IF(INDEX(RawMaterialTable!$A$4:$A$223,ROW(A143)-3,1)="","",INDEX(RawMaterialTable!$A$4:$A$223,ROW(A143)-3,1)) -> Lead Bisilicate
A144: =IF(INDEX(RawMaterialTable!$A$4:$A$223,ROW(A144)-3,1)="","",INDEX(RawMaterialTable!$A$4:$A$223,ROW(A144)-3,1)) -> Lead Carbonate
A145: =IF(INDEX(RawMaterialTable!$A$4:$A$223,ROW(A145)-3,1)="","",INDEX(RawMaterialTable!$A$4:$A$223,ROW(A145)-3,1)) -> Lepidolite
A146: =IF(INDEX(RawMaterialTable!$A$4:$A$223,ROW(A146)-3,1)="","",INDEX(RawMaterialTable!$A$4:$A$223,ROW(A146)-3,1)) -> Litharge
A147: =IF(INDEX(RawMaterialTable!$A$4:$A$223,ROW(A147)-3,1)="","",INDEX(RawMaterialTable!$A$4:$A$223,ROW(A147)-3,1)) -> Lithium Carbonate
A148: =IF(INDEX(RawMaterialTable!$A$4:$A$223,ROW(A148)-3,1)="","",INDEX(RawMaterialTable!$A$4:$A$223,ROW(A148)-3,1)) -> Lithospar
A149: =IF(INDEX(RawMaterialTable!$A$4:$A$223,ROW(A149)-3,1)="","",INDEX(RawMaterialTable!$A$4:$A$223,ROW(A149)-3,1)) -> M&D Ball Clay
A150: =IF(INDEX(RawMaterialTable!$A$4:$A$223,ROW(A150)-3,1)="","",INDEX(RawMaterialTable!$A$4:$A$223,ROW(A150)-3,1)) -> Magnesium Carbonate
A151: =IF(INDEX(RawMaterialTable!$A$4:$A$223,ROW(A151)-3,1)="","",INDEX(RawMaterialTable!$A$4:$A$223,ROW(A151)-3,1)) -> Manganese Carbonate
A152: =IF(INDEX(RawMaterialTable!$A$4:$A$223,ROW(A152)-3,1)="","",INDEX(RawMaterialTable!$A$4:$A$223,ROW(A152)-3,1)) -> Manganese Dioxide. MnO2
A153: =IF(INDEX(RawMaterialTable!$A$4:$A$223,ROW(A153)-3,1)="","",INDEX(RawMaterialTable!$A$4:$A$223,ROW(A153)-3,1)) -> Manganese Oxide. MnO
A154: =IF(INDEX(RawMaterialTable!$A$4:$A$223,ROW(A154)-3,1)="","",INDEX(RawMaterialTable!$A$4:$A$223,ROW(A154)-3,1)) -> Minspar 200
A155: =IF(INDEX(RawMaterialTable!$A$4:$A$223,ROW(A155)-3,1)="","",INDEX(RawMaterialTable!$A$4:$A$223,ROW(A155)-3,1)) -> Mullite
A156: =IF(INDEX(RawMaterialTable!$A$4:$A$223,ROW(A156)-3,1)="","",INDEX(RawMaterialTable!$A$4:$A$223,ROW(A156)-3,1)) -> Murrays Borate
A157: =IF(INDEX(RawMaterialTable!$A$4:$A$223,ROW(A157)-3,1)="","",INDEX(RawMaterialTable!$A$4:$A$223,ROW(A157)-3,1)) -> Nepheline Syenite
A158: =IF(INDEX(RawMaterialTable!$A$4:$A$223,ROW(A158)-3,1)="","",INDEX(RawMaterialTable!$A$4:$A$223,ROW(A158)-3,1)) -> Nickel Oxide, green
A159: =IF(INDEX(RawMaterialTable!$A$4:$A$223,ROW(A159)-3,1)="","",INDEX(RawMaterialTable!$A$4:$A$223,ROW(A159)-3,1)) -> NP Blend Ball Clay
A160: =IF(INDEX(RawMaterialTable!$A$4:$A$223,ROW(A160)-3,1)="","",INDEX(RawMaterialTable!$A$4:$A$223,ROW(A160)-3,1)) -> Nytal Talc
A161: =IF(INDEX(RawMaterialTable!$A$4:$A$223,ROW(A161)-3,1)="","",INDEX(RawMaterialTable!$A$4:$A$223,ROW(A161)-3,1)) -> Ocamulgee Red Clay
A162: =IF(INDEX(RawMaterialTable!$A$4:$A$223,ROW(A162)-3,1)="","",INDEX(RawMaterialTable!$A$4:$A$223,ROW(A162)-3,1)) -> OM #4 Ball Clay
A163: =IF(INDEX(RawMaterialTable!$A$4:$A$223,ROW(A163)-3,1)="","",INDEX(RawMaterialTable!$A$4:$A$223,ROW(A163)-3,1)) -> Oxford Feldspar
A164: =IF(INDEX(RawMaterialTable!$A$4:$A$223,ROW(A164)-3,1)="","",INDEX(RawMaterialTable!$A$4:$A$223,ROW(A164)-3,1)) -> PBX Fireclay
A165: =IF(INDEX(RawMaterialTable!$A$4:$A$223,ROW(A165)-3,1)="","",INDEX(RawMaterialTable!$A$4:$A$223,ROW(A165)-3,1)) -> Pearl Ash
A166: =IF(INDEX(RawMaterialTable!$A$4:$A$223,ROW(A166)-3,1)="","",INDEX(RawMaterialTable!$A$4:$A$223,ROW(A166)-3,1)) -> Pearl Ash Calcined
A167: =IF(INDEX(RawMaterialTable!$A$4:$A$223,ROW(A167)-3,1)="","",INDEX(RawMaterialTable!$A$4:$A$223,ROW(A167)-3,1)) -> Petalite
A168: =IF(INDEX(RawMaterialTable!$A$4:$A$223,ROW(A168)-3,1)="","",INDEX(RawMaterialTable!$A$4:$A$223,ROW(A168)-3,1)) -> Pioneer Kaolin
A169: =IF(INDEX(RawMaterialTable!$A$4:$A$223,ROW(A169)-3,1)="","",INDEX(RawMaterialTable!$A$4:$A$223,ROW(A169)-3,1)) -> Plastic Vitrox
A170: =IF(INDEX(RawMaterialTable!$A$4:$A$223,ROW(A170)-3,1)="","",INDEX(RawMaterialTable!$A$4:$A$223,ROW(A170)-3,1)) -> Portland Cement
A171: =IF(INDEX(RawMaterialTable!$A$4:$A$223,ROW(A171)-3,1)="","",INDEX(RawMaterialTable!$A$4:$A$223,ROW(A171)-3,1)) -> Potash Feldspar
A172: =IF(INDEX(RawMaterialTable!$A$4:$A$223,ROW(A172)-3,1)="","",INDEX(RawMaterialTable!$A$4:$A$223,ROW(A172)-3,1)) -> Pumice
A173: =IF(INDEX(RawMaterialTable!$A$4:$A$223,ROW(A173)-3,1)="","",INDEX(RawMaterialTable!$A$4:$A$223,ROW(A173)-3,1)) -> PC Clay
A174: =IF(INDEX(RawMaterialTable!$A$4:$A$223,ROW(A174)-3,1)="","",INDEX(RawMaterialTable!$A$4:$A$223,ROW(A174)-3,1)) -> Pyrax Pyrophyllite
A175: =IF(INDEX(RawMaterialTable!$A$4:$A$223,ROW(A175)-3,1)="","",INDEX(RawMaterialTable!$A$4:$A$223,ROW(A175)-3,1)) -> Pyrophyllite
A176: =IF(INDEX(RawMaterialTable!$A$4:$A$223,ROW(A176)-3,1)="","",INDEX(RawMaterialTable!$A$4:$A$223,ROW(A176)-3,1)) -> Quartz
A177: =IF(INDEX(RawMaterialTable!$A$4:$A$223,ROW(A177)-3,1)="","",INDEX(RawMaterialTable!$A$4:$A$223,ROW(A177)-3,1)) -> Ravenscrag Slip
A178: =IF(INDEX(RawMaterialTable!$A$4:$A$223,ROW(A178)-3,1)="","",INDEX(RawMaterialTable!$A$4:$A$223,ROW(A178)-3,1)) -> Red Lead
A179: =IF(INDEX(RawMaterialTable!$A$4:$A$223,ROW(A179)-3,1)="","",INDEX(RawMaterialTable!$A$4:$A$223,ROW(A179)-3,1)) -> Redart
A180: =IF(INDEX(RawMaterialTable!$A$4:$A$223,ROW(A180)-3,1)="","",INDEX(RawMaterialTable!$A$4:$A$223,ROW(A180)-3,1)) -> Rutile
A181: =IF(INDEX(RawMaterialTable!$A$4:$A$223,ROW(A181)-3,1)="","",INDEX(RawMaterialTable!$A$4:$A$223,ROW(A181)-3,1)) -> Saffer XX Ball Clay
A182: =IF(INDEX(RawMaterialTable!$A$4:$A$223,ROW(A182)-3,1)="","",INDEX(RawMaterialTable!$A$4:$A$223,ROW(A182)-3,1)) -> Sheffield Slip
A183: =IF(INDEX(RawMaterialTable!$A$4:$A$223,ROW(A183)-3,1)="","",INDEX(RawMaterialTable!$A$4:$A$223,ROW(A183)-3,1)) -> SIL-O-SPAR
A184: =IF(INDEX(RawMaterialTable!$A$4:$A$223,ROW(A184)-3,1)="","",INDEX(RawMaterialTable!$A$4:$A$223,ROW(A184)-3,1)) -> Silica
A185: =IF(INDEX(RawMaterialTable!$A$4:$A$223,ROW(A185)-3,1)="","",INDEX(RawMaterialTable!$A$4:$A$223,ROW(A185)-3,1)) -> Silica, SIL-CO-SIL 52
A186: =IF(INDEX(RawMaterialTable!$A$4:$A$223,ROW(A186)-3,1)="","",INDEX(RawMaterialTable!$A$4:$A$223,ROW(A186)-3,1)) -> Sledge Ball Clay
A187: =IF(INDEX(RawMaterialTable!$A$4:$A$223,ROW(A187)-3,1)="","",INDEX(RawMaterialTable!$A$4:$A$223,ROW(A187)-3,1)) -> Snobrite Kaolin
A188: =IF(INDEX(RawMaterialTable!$A$4:$A$223,ROW(A188)-3,1)="","",INDEX(RawMaterialTable!$A$4:$A$223,ROW(A188)-3,1)) -> Soda Ash
A189: =IF(INDEX(RawMaterialTable!$A$4:$A$223,ROW(A189)-3,1)="","",INDEX(RawMaterialTable!$A$4:$A$223,ROW(A189)-3,1)) -> Soda Feldspar
A190: =IF(INDEX(RawMaterialTable!$A$4:$A$223,ROW(A190)-3,1)="","",INDEX(RawMaterialTable!$A$4:$A$223,ROW(A190)-3,1)) -> Spinks Blend Ball
A191: =IF(INDEX(RawMaterialTable!$A$4:$A$223,ROW(A191)-3,1)="","",INDEX(RawMaterialTable!$A$4:$A$223,ROW(A191)-3,1)) -> Spodumene
A192: =IF(INDEX(RawMaterialTable!$A$4:$A$223,ROW(A192)-3,1)="","",INDEX(RawMaterialTable!$A$4:$A$223,ROW(A192)-3,1)) -> Spruce Pine #4 Spar
A193: =IF(INDEX(RawMaterialTable!$A$4:$A$223,ROW(A193)-3,1)="","",INDEX(RawMaterialTable!$A$4:$A$223,ROW(A193)-3,1)) -> Strontium Carbonate
A194: =IF(INDEX(RawMaterialTable!$A$4:$A$223,ROW(A194)-3,1)="","",INDEX(RawMaterialTable!$A$4:$A$223,ROW(A194)-3,1)) -> Superpax
A195: =IF(INDEX(RawMaterialTable!$A$4:$A$223,ROW(A195)-3,1)="","",INDEX(RawMaterialTable!$A$4:$A$223,ROW(A195)-3,1)) -> Talc
A196: =IF(INDEX(RawMaterialTable!$A$4:$A$223,ROW(A196)-3,1)="","",INDEX(RawMaterialTable!$A$4:$A$223,ROW(A196)-3,1)) -> Talc, C-98
A197: =IF(INDEX(RawMaterialTable!$A$4:$A$223,ROW(A197)-3,1)="","",INDEX(RawMaterialTable!$A$4:$A$223,ROW(A197)-3,1)) -> Tektamer 38 Biocide
A198: =IF(INDEX(RawMaterialTable!$A$4:$A$223,ROW(A198)-3,1)="","",INDEX(RawMaterialTable!$A$4:$A$223,ROW(A198)-3,1)) -> Tennessee #1 Ball
A199: =IF(INDEX(RawMaterialTable!$A$4:$A$223,ROW(A199)-3,1)="","",INDEX(RawMaterialTable!$A$4:$A$223,ROW(A199)-3,1)) -> Tennessee #5 Ball
A200: =IF(INDEX(RawMaterialTable!$A$4:$A$223,ROW(A200)-3,1)="","",INDEX(RawMaterialTable!$A$4:$A$223,ROW(A200)-3,1)) -> Tennessee #10 Ball
... 155 more rows

Sheet RawMaterialTable (hidden)
A1: Materials | B1: %LOI | C1: Cost\Oxide | D1: BaO | E1: CaO | F1: PbO | G1: Li2O | H1: MgO | I1: K2O | J1: Na2O | K1: SrO | L1: ZnO | M1: SnO2 | N1: TiO2 | O1: ZrO2 | P1: Al2O3 | Q1: B2O3 | R1: P2O5 | S1: SiO2 | T1: Fe2O3 | U1: Cr2O3 | V1: CuO | W1: CoO | X1: MnO | Y1: NiO | Z1: Available | AC1: Price/Lb | AD1: Density Eff | AF1: Density | AG1: Source
C2: mole Wt | D2: =Constants!F9 -> 153.33 | E2: =Constants!F10 -> 56.08 | F2: =Constants!F23 -> 223.2 | G2: =Constants!F17 -> 29.882 | H2: =Constants!F18 -> 40.31 | I2: =Constants!F16 -> 94.2 | J2: =Constants!F20 -> 61.98 | K2: =Constants!F26 -> 103.62 | L2: =Constants!F28 -> 81.39 | M2: =Constants!F25 -> 150.71 | N2: =Constants!F27 -> 79.87 | O2: =Constants!F29 -> 123.22 | P2: =Constants!F7 -> 101.96 | Q2: =Constants!F8 -> 69.6182 | R2: =Constants!F22 -> 141.94 | S2: =Constants!F24 -> 60.09 | T2: =Constants!F14 -> 159.68 | U2: =Constants!F12 -> 152 | V2: =Constants!F13 -> 79.54 | W2: =Constants!F11 -> 74.93 | X2: =Constants!F19 -> 70.94 | Y2: =Constants!F21 -> 74.69 | Z2: 0 | AA2: <--Weight | AD2: 2.5
A3: 4 | C3: oxide COE | D3: =VLOOKUP(D1, CoTE, $A3) -> 7.166666667 | E3: 7.288888889 | F3: 8.3 | G3: 6.8 | H3: 6 | I3: 33.1 | J3: 38.7 | K3: 7.455555556 | L3: 9.4 | M3: 3.65 | N3: 3.966666667 | O3: 2 | P3: 3 | Q3: 3.1 | R3: 7.14 | S3: 0.3055555556 | T3: 5.783333333 | U3: 6.333333333 | V3: 3.5 | W3: 5.555555556 | X3: 5 | Y3: 5 | Z3: 0 | AA3: <--Expansion | AB3: Totality
A4: Alumina Calcined | C4: =IF(AC4<>"",AC4*2.2,0) -> 3.19 | P4: 100 | AB4: =SUM(D4:Z4)+B4 -> 100 | AC4: 1.45 | AD4: =IF(AF4="",AD$2,AF4) -> 3.987 | AF4: 3.987
A5: Alumina Hydrate | B5: 34.6 | C5: 3.3 | P5: 65.38 | AB5: =SUM(D5:Z5)+B5 -> 99.98 | AC5: 1.5 | AD5: 2.42 | AF5: 2.42
A6: A-3 Feldspar | B6: 0.08 | C6: =IF(AC6<>"",AC6*2.2,0) -> 0 | E6: 0.4 | I6: 7.5 | J6: 4 | P6: 16.3 | S6: 71.63 | T6: 0.07 | AB6: 99.98 | AD6: 2.56 | AF6: 2.56
A7: AJAX Glomax Kaolin | B7: 0.378 | C7: =IF(AC7<>"",AC7*2.2,0) -> 0 | I7: 0.4 | J7: 0.3 | N7: 0.93 | P7: 44.4 | S7: 53.16 | T7: 0.42 | AB7: 99.988 | AD7: =IF(AF7="",AD$2,AF7) -> 2.42 | AF7: =AVERAGE(2.16,2.68) -> 2.42
A8: AJAX P Kaolin | B8: 13.4 | C8: 0 | E8: 0.25 | H8: 0.3 | I8: 0.04 | N8: 1.971 | P8: 38.1 | S8: 45.4 | T8: 0.48 | AB8: 99.941 | AD8: =IF(AF8="",AD$2,AF8) -> 2.35 | AF8: 2.35
A9: Albany Slip | B9: 9.4 | C9: 0 | E9: 5.8 | H9: 2.7 | I9: 3.2 | J9: 0.8 | N9: 0.4 | P9: 14.6 | S9: 57.8 | T9: 5.2 | AB9: 99.9 | AD9: 2.6 | AF9: 2.6
A10: Alberta Slip | B10: 9.3 | C10: 5.39 | E10: 6.5 | H10: 3.1 | I10: 3 | J10: 2.2 | N10: 0.4 | P10: 13.8 | R10: 0.1 | S10: 56.8 | T10: 4.8 | AB10: 100 | AC10: 2.45 | AD10: 2.6 | AF10: 2.6
A11: Alberta Slip II | B11: 8 | C11: 0 | E11: 6 | H11: 2.6 | I11: 2.3 | J11: 1.8 | N11: 0.4 | P11: 12.5 | R11: 0.1 | S11: 61 | T11: 5.2 | AB11: 99.9 | AD11: 2.6 | AF11: 2.6
A12: Anhydrous Borax | C12: 2.75 | J12: 30.8 | Q12: 69.18 | AB12: 99.98 | AC12: 1.25 | AD12: 1.73 | AF12: 1.73
A13: Ash, Oak | B13: 6.71 | C13: 0 | E13: 21.51 | H13: 15.85 | I13: 33.44 | J13: 2.3 | S13: 0.67 | T13: 0.58 | X13: 2.6 | AB13: 83.66 | AD13: 1.5 | AF13: 1.5
A14: Ash, Hardwood | B14: 6.71 | C14: 0 | E14: 21.51 | H14: 15.85 | I14: 33.44 | J14: 2.3 | S14: 0.67 | T14: 0.58 | X14: 2.6 | AB14: 83.66 | AC14: 0 | AD14: 1.5 | AF14: 1.5
A15: Ash, Pine | B15: 29.69 | C15: 0 | E15: 41.1 | H15: 8.21 | I15: 10.96 | J15: 0.77 | S15: 2 | T15: 0.07 | X15: 2.54 | AB15: 95.34 | AC15: 0 | AD15: 1.5 | AF15: 1.5
A16: Ash, softwood | B16: 29.69 | C16: 0 | E16: 41.1 | H16: 8.21 | I16: 10.96 | J16: 0.77 | S16: 2 | T16: 0.07 | X16: 2.54 | AB16: 95.34 | AC16: 0 | AD16: 1.5 | AF16: 1.5
A17: BALL CLAY | B17: 12.2 | C17: 0.55 | E17: 0.19 | H17: 0.2 | I17: 0.9 | J17: 0.4 | N17: 1.5 | P17: 31.7 | S17: 52 | T17: 0.8 | AB17: 99.89 | AC17: =AC138 -> 0.25 | AD17: 2.6 | AF17: 2.6
A18: Baking Soda | B18: 63.171 | C18: 0 | J18: 36.829 | AB18: 100 | AD18: 2.2 | AF18: 2.2
A19: Barium Carbonate | B19: 22.34 | C19: 6.6 | D19: 77.66 | AB19: 100 | AC19: 3 | AD19: 4.286 | AF19: 4.286
A20: Barnard Clay | B20: 8.31 | C20: 2.97 | E20: 0.6 | H20: 0.7 | I20: 1.1 | J20: 0.6 | N20: 0.2 | P20: 7.6 | S20: 47 | T20: 33.9 | AB20: 100.01 | AC20: 1.35 | AD20: 2.6 | AF20: 2.6
A21: Bell Dark Ball Clay | B21: 10.451 | C21: 0 | E21: 0.19 | H21: 0.19 | I21: 0.3 | J21: 0.1 | N21: 1.8 | P21: 26.8 | S21: 59.2 | T21: 0.97 | AB21: 100.001 | AD21: 2.6 | AF21: 2.6
A22: Bell Feldspar | B22: 0.214 | C22: 0 | E22: 0.397 | I22: 10.073 | J22: 3.09 | P22: 17.872 | S22: 68.275 | T22: 0.079 | AB22: 100 | AD22: 2.56 | AF22: 2.56
A23: Bentolite L | B23: 5.8 | C23: 0 | E23: 1.67 | H23: 3.66 | I23: 0.1 | J23: 0.2 | N23: 0.27 | P23: 15.76 | S23: 72.2 | T23: 0.33 | AB23: 99.99 | AD23: 1.8 | AF23: 1.8
A24: Bentonite | B24: 10 | C24: 1.76 | E24: 1 | H24: 2 | I24: 1 | J24: 3 | P24: 20 | S24: 59 | T24: 3.5 | AB24: 99.5 | AC24: 0.8 | AD24: 1.8 | AF24: 1.8
A25: Bone Ash | B25: 1.02 | C25: 3.85 | E25: 55.25 | H25: 1.4 | R25: 41.65 | AB25: 99.32 | AC25: =1.75 -> 1.75 | AD25: 2.31 | AF25: 2.31
A26: Borax | B26: 47.26 | C26: 2.75 | J26: 16.25 | Q26: 36.49 | AB26: 100 | AC26: 1.25 | AD26: 1.73 | AF26: 1.73
A27: Borax 5 Mol | B27: 29.7 | C27: 0 | J27: 16.25 | Q27: 48.5 | AB27: 94.45 | AD27: 1.73 | AF27: 1.73
A28: Boric Acid | B28: 43.5 | C28: 0 | Q28: 56.5 | AB28: 100 | AD28: 1.435 | AF28: 1.435 | AG28: Optibor TG - http://www.borax.com/pdfs/CSF.Final.pdf
A29: Buckingham Feldspar | B29: 0.22 | C29: 0 | E29: 0.2 | H29: 0.1 | I29: 11.6 | J29: 3 | P29: 18 | S29: 66.9 | AB29: 100.02 | AD29: 2.56 | AF29: 2.56
A30: Boraq 1 | B30: 25.3 | C30: 0 | E30: 21.8 | H30: 2.3 | I30: 0.6 | J30: 3.6 | P30: 2.8 | Q30: 30 | S30: 13.2 | T30: 0.2 | AB30: 99.8 | AD30: 2.42 | AF30: 2.42
A31: Boraq 2 | B31: 26.4 | C31: 0 | E31: 25.4 | H31: 3.6 | I31: 0.5 | J31: 3.2 | P31: 2.4 | Q31: 26.5 | S31: 11.9 | T31: 0.1 | AB31: 100 | AD31: 2.42 | AF31: 2.42
A32: Boraq 3 | B32: 26.05 | C32: 0 | E32: 27.3 | H32: 2 | I32: 0.5 | J32: 3.2 | P32: 2.4 | Q32: 26.5 | S32: 11.9 | T32: 0.1 | AB32: 99.95 | AD32: 2.42 | AF32: 2.42
A33: Cadycal | B33: 24 | C33: 0 | E33: 32.31 | H33: 0.6 | J33: 0.184 | P33: 0.43 | Q33: 40.26 | S33: 2.21 | AB33: 99.994 | AD33: 2.42 | AF33: =AF116 -> 2.42
A34: Calcined Kaolin | C34: 1.65 | E34: 0.2 | H34: 0.2 | I34: 0.2 | J34: 0.2 | N34: 1.5 | P34: 43.5 | S34: 54 | T34: 0.2 | AB34: 100 | AC34: 0.75 | AD34: 2.41 | AF34: 2.41
A35: Calcium Borate | C35: 0 | E35: 44.6 | Q35: 55.37 | AB35: 99.97 | AD35: 1.73 | AF35: 1.73
A36: Calcium Carbonate | B36: 43.9 | C36: 0.528 | E36: 56.1 | AB36: 100 | AC36: 0.24 | AD36: 2.75 | AF36: 2.75
A37: Calcium Feldspar | C37: 0 | E37: 10.82 | P37: 19.66 | S37: 69.52 | AB37: 100 | AD37: 2.56 | AF37: 2.56
A38: Calvert Clay | B38: 7.98 | C38: 0 | E38: 0.3 | H38: 0.8 | I38: 2 | J38: 0.41 | N38: 1.21 | P38: 23.8 | S38: 57.79 | T38: 5.71 | AB38: 100 | AD38: 2.6 | AF38: 2.6
A39: Cedar Heights Fire | B39: 8.13 | C39: 0 | E39: 0.57 | H39: 0.11 | J39: 0.5 | N39: 0.31 | P39: 22.06 | S39: 66.62 | T39: 1.7 | AB39: 100 | AD39: 2.6 | AF39: 2.6
A40: Chesterfield Spar | B40: 0.29 | C40: 0 | E40: 0.3 | I40: 8.5 | J40: 3.75 | P40: 16.34 | S40: 70.75 | T40: 0.07 | AB40: 100 | AD40: 2.6 | AF40: 2.6
A41: China Clay | B41: 12.5 | C41: 1.1 | P41: 40.2 | S41: 47.3 | AB41: 100 | AC41: 0.5 | AD41: 2.6 | AF41: 2.6
A42: Chromium Oxide | C42: 20.9 | U42: 100 | AB42: 100 | AC42: 9.5 | AD42: 5.22 | AF42: 5.22
A43: CMC GUM | B43: 100 | C43: 17.6 | AB43: 100 | AC43: 8 | AD43: 1 | AF43: 1
A44: ABC Colemanite | B44: 25.5 | C44: 0 | E44: 29.6 | H44: 0.3 | J44: 0.1 | K44: 1 | P44: 0.2 | Q44: 42.6 | S44: 0.6 | T44: 0.1 | AB44: 100 | AD44: 2.42 | AF44: 2.42
A45: Colemanite | B45: 22 | C45: 0 | E45: 27 | H45: 1.5 | P45: 0.5 | Q45: 43 | S45: 4 | T45: 0.3 | AB45: 98.3 | AD45: 2.42 | AF45: 2.42
A46: Cobalt Carbonate | B46: 37 | C46: 107.25 | W46: 63 | AB46: 100 | AC46: 48.75 | AD46: 4.31 | AF46: 4.31
A47: Cobalt Oxide | C47: 151.25 | W47: 100 | AB47: 100 | AC47: 68.75 | AD47: 6.44 | AF47: 6.44
A48: Copper Carbonate | B48: 35.6 | C48: 17.6 | V48: 64.4 | AB48: 100 | AC48: 8 | AD48: 4 | AF48: 4
A49: Copper (I)Oxide - Red | C49: 31.9 | V49: 111.175 | AB49: 111.175 | AC49: 14.5 | AD49: 6 | AF49: 6
A50: Copper (II)Oxide - Black | C50: 20.9 | V50: 100 | AB50: 100 | AC50: 9.5 | AD50: 6.315 | AF50: 6.315
A51: Cornwall Stone | B51: 1.5 | C51: 4.95 | E51: 2 | I51: 4 | J51: 3.5 | N51: 0.1 | P51: 16.5 | S51: 73 | T51: 0.15 | AB51: 100.75 | AC51: 2.25 | AD51: 2.6 | AF51: 2.6
A52: Cryolite | B52: 54.4 | C52: 7.128 | J52: 22.39 | P52: 68.56 | AB52: =SUM(D52:Z52)+B52 -> 145.35 | AC52: 3.24 | AD52: 2.95 | AF52: 2.95
A53: Custer Feldspar | B53: 0.3 | C53: 0.924 | E53: 0.3 | I53: 10.08 | J53: 3.02 | P53: 17.13 | S53: 69.02 | T53: 0.15 | AB53: 100 | AC53: 0.42 | AD53: 2.66 | AF53: 2.66
A54: Diamond Kaolin | B54: 13.5 | C54: 0 | E54: 0.15 | H54: 0.1 | I54: 0.18 | J54: 0.08 | N54: 1.4 | P54: 37.9 | S54: 45.6 | T54: 0.7 | AB54: 99.61 | AD54: 2.6 | AF54: 2.6
A55: Dolomite | B55: 47.61 | C55: 0.44 | E55: 30.49 | H55: 21.9 | AB55: 100 | AC55: 0.2 | AD55: 2.85 | AF55: 2.85
A56: English Kaolin | B56: 12.16 | C56: 0 | E56: 0.02 | H56: 0.28 | I56: 1.79 | J56: 0.05 | N56: 0.06 | P56: 37.38 | S56: 47.44 | T56: 0.82 | AB56: 100 | AD56: 2.6 | AF56: 2.6
A57: EPK Kaolin | B57: 13.91 | C57: 0.77 | E57: 0.18 | H57: 0.098 | I57: 0.33 | J57: 0.059 | N57: 0.37 | P57: 37.36 | R57: 0.236 | S57: 45.73 | T57: 0.79 | AB57: 99.063 | AC57: 0.35 | AD57: 2.6 | AF57: 2.6 | AG57: Edgars Minerals, Inc. - http://www.edgarminerals.com/EPK-Clay.html
A58: Eureka Feldspar | B58: 0.2 | C58: 0 | E58: 0.01 | I58: 9.37 | J58: 3.49 | P58: 17.05 | S58: 69.7 | T58: 0.11 | AB58: 99.93 | AD58: 2.66 | AF58: 2.66
A59: F-4 Feldspar | B59: 0.2 | C59: 0.682 | E59: 1.5 | H59: 0.05 | I59: 5 | J59: 6.8 | P59: 19.6 | S59: 68.85 | T59: 0.05 | AB59: 102.05 | AC59: 0.31 | AD59: 2.66 | AF59: 2.66 | AG59: http://www.pedar.us/chemical_labels/FELDSPAR,%20KONA%20F-4.PDF
A60: Fireclay, Hawthorne Missouri | B60: 8 | C60: 0.66 | E60: 0.3 | H60: 0.7 | I60: 1.3 | J60: 0.1 | N60: 1.9 | P60: 35.2 | S60: 51 | T60: 1.4 | AB60: 99.9 | AC60: 0.3 | AD60: 2.6 | AF60: 2.6
A61: Fireclay, AP Green Missouri | B61: 11 | C61: 0.66 | E61: 0.35 | H61: 0.35 | I61: 0.5 | J61: 0.5 | N61: 2 | P61: 31 | S61: 52 | T61: 2 | AB61: 99.7 | AC61: 0.3 | AD61: 2.6 | AF61: 2.6
A62: Flint | B62: =B185 -> 0.01 | C62: 0.506 | D62: 0 | E62: 0.008 | F62: 0 | G62: 0 | H62: =H185 -> 0.008 | I62: 0.01 | J62: 0.008 | K62: 0 | L62: 0 | M62: 0 | N62: 0.02 | O62: 0 | P62: 0.2 | Q62: 0 | R62: 0 | S62: 99.64 | T62: 0.026 | U62: 0 | V62: 0 | W62: 0 | X62: 0 | Y62: 0 | Z62: 0 | AA62: 0 | AB62: 99.93 | AC62: 0.23 | AD62: 2.648 | AF62: 2.648 | AG62: =AG185 -> SIL-CO-SIL 52 http://www.u-s-silica.com/PDS/Columbia/ColSCS522009.pdf
A63: Fluorspar | B63: 46.4 | C63: 5.5 | E63: 50.6 | S63: 3 | AB63: 100 | AC63: 2.5 | AD63: 3.18 | AF63: 3.18
A64: FRIT 13 | C64: 0 | F64: 68.9 | J64: 8.21 | Q64: 11.98 | S64: 10.87 | AB64: 99.96 | AD64: 2.6 | AF64: 2.6
A65: FRIT 14 | C65: 0 | E65: 20 | J65: 10.4 | Q65: 23.3 | S65: 46.4 | AB65: 100.1 | AD65: 2.6 | AF65: 2.6
A66: FRIT 22 | C66: 0 | E66: 6.832 | F66: 30.65 | Q66: 17.672 | S66: 44.846 | AB66: 100 | AD66: 2.6 | AF66: 2.6
A67: FRIT 240 | C67: 0 | F67: 59.27 | J67: 6.4 | Q67: 14.38 | S67: 19.95 | AB67: 100 | AD67: 2.6 | AF67: 2.6
A68: FRIT 266 | C68: 0 | E68: 15.512 | J68: 8.068 | P68: 13.273 | Q68: 31.132 | S68: 32.015 | AB68: 100 | AD68: 2.6 | AF68: 2.6
A69: FRIT 267 | C69: 0 | E69: 10.404 | I69: 4.055 | J69: 6.365 | P69: 9.796 | Q69: 28.58 | S69: 40.8 | AB69: 100 | AD69: 2.6 | AF69: 2.6
A70: FRIT 285 | C70: 0 | I70: 2.985 | J70: 17.684 | P70: 6.788 | Q70: 20.734 | S70: 51.808 | AB70: =SUM(D70:Z70)+B70 -> 99.999 | AD70: 2.6 | AF70: 2.6
A71: FRIT 3110 | C71: =IF(AC71<>"",AC71*2.2,0) -> 5.5 | E71: 6.3 | I71: 2.3 | J71: 15.3 | P71: 3.7 | Q71: 2.6 | S71: 69.8 | AB71: 100 | AC71: 2.5 | AD71: 2.6 | AF71: 2.6
A72: FRIT 3124 | C72: 4.4 | E72: 14.1 | I72: 0.7 | J72: 6.3 | P72: 9.9 | Q72: 13.7 | S72: 55.3 | AB72: 100 | AC72: 2 | AD72: =IF(AF72="",AD$2,AF72) -> 2.6 | AF72: 2.6
A73: FRIT 3134 | C73: 4.29 | E73: 20.1 | J73: 10.3 | Q73: 23.1 | S73: 46.5 | AB73: 100 | AC73: 1.95 | AD73: 2.6 | AF73: 2.6 | AG73: Digital Fire
A74: FRIT 316 | C74: 0 | F74: 61.3 | P74: 7 | S74: 31.69 | AB74: 99.99 | AD74: 2.6 | AF74: 2.6
A75: FRIT 3195 | C75: 4.4 | E75: 10.9 | H75: 0.12 | J75: 6.2 | P75: 11.9 | Q75: 23.5 | S75: 47.3 | AB75: 99.92 | AC75: 2 | AD75: 2.6 | AF75: 2.6
A76: FRIT 3211 | C76: 0 | E76: 42 | Q76: 58 | AB76: 100 | AD76: 2.6 | AF76: 2.6
A77: FRIT 3249 | C77: 0 | E77: 3.5 | H77: 12.2 | P77: 13.3 | Q77: 28.9 | S77: 42.1 | AB77: 100 | AD77: 2.6 | AF77: 2.6
A78: FRIT 3269 | B78: 1.6 | C78: 3.96 | E78: 0.1 | I78: 8.1 | J78: 11.1 | L78: 1 | P78: 13.2 | Q78: 15.2 | S78: 49.7 | AB78: 100 | AC78: 1.8 | AD78: 2.6 | AF78: 2.6
A79: FRIT 3278 | C79: 0 | E79: 6.9 | J79: 15.3 | Q79: 21.6 | S79: 56.2 | AB79: 100 | AD79: 2.6 | AF79: 2.6
A80: FRIT 3289 | C80: 3.96 | D80: 27.4 | J80: 5.5 | P80: 5.4 | Q80: 12.4 | S80: 49.3 | AB80: 100 | AC80: 1.8 | AD80: 2.6 | AF80: 2.6
A81: FRIT 3300 | C81: 0 | D81: 6.2 | E81: 8.8 | F81: 22.2 | H81: 0.4 | I81: 3.2 | J81: 0.7 | L81: 10.5 | P81: 9.2 | S81: 38.8 | AB81: 100 | AD81: 2.6 | AF81: 2.6
A82: FRIT 3304 | C82: 0 | F82: 54.4 | J82: 1.1 | P82: 4 | S82: 40.5 | AB82: 100 | AD82: 2.6 | AF82: 2.6
A83: FRIT 3327 | C83: 0 | F83: 85 | S83: 15 | AB83: 100 | AD83: 2.6 | AF83: 2.6
A84: FRIT 3419 | C84: 0 | F84: 59.2 | J84: 6.4 | Q84: 14.5 | S84: 19.9 | AB84: 100 | AD84: 2.6 | AF84: 2.6
A85: FRIT 3467 | C85: 0 | E85: 7.997 | F85: 17.207 | H85: 0.598 | I85: 1.699 | J85: 2.399 | P85: 9.08 | Q85: 4.495 | S85: 56.525 | AB85: 100 | AD85: 2.6 | AF85: 2.6
A86: FRIT 3481 | C86: 0 | E86: 9.9 | F86: 22.77 | I86: 1.19 | J86: 3.09 | P86: 7 | Q86: 6.2 | S86: 49.86 | AB86: 100.01 | AD86: 2.6 | AF86: 2.6
A87: FRIT 349 | C87: 0 | E87: 10.4 | F87: 17.121 | I87: 2.71 | J87: 1.783 | P87: 6.194 | Q87: 8.008 | S87: 53.784 | AB87: 100 | AD87: 2.6 | AF87: 2.6
A88: FRIT 3602 | C88: 0 | F88: 65.27 | P88: 2.5 | S88: 32.23 | AB88: 100 | AD88: 2.6 | AF88: 2.6
A89: FRIT 439 | C89: 3.08 | E89: 30.26 | H89: 4.95 | J89: 7.97 | P89: 1.62 | Q89: 41.32 | S89: 13.89 | AB89: 100.01 | AC89: 1.4 | AD89: 2.6 | AF89: 2.6
A90: FRIT 54 | C90: 0 | E90: 20 | J90: 10.4 | Q90: 23.3 | S90: 46.3 | AB90: 100 | AD90: 2.6 | AF90: 2.6
A91: FRIT 67 | C91: 0 | E91: 12.46 | I91: 3.64 | J91: 3.79 | P91: 12.15 | Q91: 26 | S91: 42 | AB91: 100.04 | AD91: 2.6 | AF91: 2.6
A92: FRIT 83 | C92: 0 | F92: 46.96 | J92: 5.07 | Q92: 5.29 | S92: 42.68 | AB92: 100 | AD92: 2.6 | AF92: 2.6
A93: FRIT 938 | C93: 0 | D93: 4.97 | E93: 9.27 | I93: 3.05 | J93: 3.82 | L93: 2.64 | P93: 6.61 | Q93: 13.98 | S93: 55.68 | AB93: 100.02 | AD93: 2.6 | AF93: 2.6
A94: FRIT B-40-C | C94: 3 | E94: 24 | P94: 33 | Q94: 40 | AB94: 97 | AD94: 2.6 | AF94: 2.6 | AG94: Digital Fire
A95: FRIT B-300 | C95: 0 | F95: 65 | P95: 3 | S95: 32 | AB95: 100 | AD95: 2.6 | AF95: 2.6
A96: FRIT CC-250 | C96: 0 | E96: 13.51 | I96: 5.1 | J96: 6.22 | P96: 10.5 | Q96: 15.95 | S96: 53.3 | AB96: 104.58 | AD96: 2.6 | AF96: 2.6
A97: FRIT CC-257 | C97: 0 | D97: 33.8 | E97: 5.5 | H97: 0.31 | I97: 0.79 | J97: 1 | K97: 0.57 | N97: 2.2 | P97: 9.26 | S97: 46.52 | AB97: 99.95 | AD97: 2.6 | AF97: 2.6
A98: FRIT F-13 | C98: 0 | E98: 18 | I98: 0.15 | J98: 8.5 | P98: 4.5 | Q98: 18.5 | S98: 50.35 | AB98: 100 | AD98: 2.6 | AF98: 2.6
A99: FRIT F-19 | C99: 0 | E99: 14.2 | J99: 7 | P99: 9.7 | Q99: 14.6 | S99: 54.5 | AB99: 100 | AD99: 2.6 | AF99: 2.6
A100: FRIT F-2 | C100: 0 | E100: 10.5 | I100: 3.7 | J100: 3 | P100: 13.5 | Q100: 20.3 | S100: 49 | AB100: 100 | AD100: 2.6 | AF100: 2.6
A101: FRIT F-34 | C101: 0 | E101: 12 | J101: 12.5 | Q101: 27.5 | S101: 48 | AB101: 100 | AD101: 2.6 | AF101: 2.6
A102: FRIT F-60 | C102: 0 | E102: 7.5 | J102: 15 | Q102: 21.5 | S102: 56 | AB102: 100 | AD102: 2.6 | AF102: 2.6
A103: FRIT F-75 | C103: 0 | E103: 6.4 | I103: 2.1 | J103: 15.3 | P103: 3.7 | Q103: 2.5 | S103: 70 | AB103: 100 | AD103: 2.6 | AF103: 2.6
A104: FRIT FZ-25 | C104: 0 | E104: 0.5 | I104: 5.4 | J104: 14.7 | L104: 0.7 | P104: 12.1 | Q104: 16.9 | S104: 49.7 | AB104: 100 | AD104: 2.6 | AF104: 2.6
A105: FRIT F-367 | C105: 0 | J105: 7.8 | Q105: 38.4 | S105: 53.8 | AB105: =SUM(D105:Z105)+B105 -> 100 | AD105: 2.6 | AF105: 2.6 | AG105: Digital Fire
A106: FRIT GF-111 | C106: 0 | E106: 20.04 | J106: 10.28 | Q106: 23.3 | S106: 46.37 | AB106: 99.99 | AD106: 2.6 | AF106: 2.6
A107: FRIT GF-113 | C107: 0 | E107: 14.09 | I107: 0.69 | J107: 6.54 | P107: 10.02 | Q107: 14.44 | S107: 54.23 | AB107: 100.01 | AD107: 2.6 | AF107: 2.6
A108: FRIT GF-115 | C108: 0 | E108: 11.43 | J108: 5.95 | P108: 11.92 | Q108: 23.15 | S108: 47.55 | AB108: 100 | AD108: 2.6 | AF108: 2.6
A109: FRIT GF-134 | C109: 0 | E109: 6.26 | I109: 2.17 | J109: 15.27 | P109: 3.53 | Q109: 2.68 | S109: 70.08 | AB109: 99.99 | AD109: 2.6 | AF109: 2.6
A110: FRIT P-25 | C110: 0 | E110: 0.5 | I110: 5.4 | J110: 14.7 | L110: 0.7 | P110: 12.1 | Q110: 16.9 | S110: 49.7 | AB110: 100 | AD110: 2.6 | AF110: 2.6
A111: FRIT P-2950 (Lead Bisilicate) | C111: 0 | F111: 64.93 | P111: 2.55 | S111: 32.52 | AB111: 100 | AD111: =IF(AF111="",7,AF111) -> 4.62 | AF111: 4.62
A112: FRIT P-311 | C112: 0 | E112: 14.1 | I112: 0.7 | J112: 6.5 | P112: 10 | Q112: 14.4 | S112: 54.3 | AB112: 100 | AD112: 2.6 | AF112: 2.6
A113: FRIT P-54 | C113: 0 | E113: 20 | J113: 10.4 | Q113: 23.3 | S113: 46.3 | AB113: 100 | AD113: 2.6 | AF113: 2.6
A114: G-200 Feldspar | B114: 0.16 | C114: 0.968 | E114: 0.81 | H114: 0.05 | I114: 10.8 | J114: 3 | P114: 18.5 | S114: 66.3 | T114: 0.08 | AB114: 99.7 | AC114: 0.44 | AD114: 2.56 | AF114: 2.56 | AG114: Imerys - http://www.google.com/search?q=G-200+feldspar+imery&ie=utf-8&oe=utf-8&aq=t&rls=org.mozilla:en-US:official&client=firefox-a
A115: G-200HP Feldspar | B115: 0.16 | C115: 0.968 | E115: 0.75 | I115: 13.2 | J115: 1.52 | P115: 18.2 | S115: 65.9 | T115: 0.09 | AB115: =SUM(D115:Z115)+B115 -> 99.82 | AC115: 0.44 | AD115: 2.56 | AF115: 2.56 | AG115: Imery's - http://www.matweb.com/search/datasheet.aspx?matguid=db09979323584561be206c39b3f8c6cf&ckck=1
A116: Gerstley Borate | B116: 26 | C116: 3.3 | E116: 24 | H116: 4 | I116: 0.5 | J116: 4 | P116: 2 | Q116: 25 | S116: 14 | T116: 0.5 | AB116: 100 | AC116: 1.5 | AD116: 2.42 | AF116: 2.42
A117: Gillespie Borate | B117: 30.9 | C117: 0 | E117: 23 | H117: 3.9 | J117: 3.77 | K117: 0.45 | P117: 1.7 | Q117: 24.5 | S117: 11.8 | AB117: 100.02 | AD117: 2.42 | AF117: 2.42
A118: GK 129 Bentonite | B118: 5.7 | C118: 0 | E118: 1.95 | H118: 3.24 | I118: 0.97 | J118: 2.61 | N118: 0.16 | P118: 15.4 | S118: 68.07 | T118: 1.89 | AB118: 99.99 | AD118: 1.8 | AF118: 1.8
A119: Glacier 200 Talc | B119: 2.5 | C119: 0 | E119: 2 | H119: 30 | P119: 0.5 | S119: 60 | T119: 1 | AB119: 96 | AD119: 2.7 | AF119: 2.7
A120: Glass Cullet | C120: 0 | E120: 10.12 | H120: 3.28 | I120: 0.09 | J120: 13.68 | P120: 1.14 | S120: 71.47 | T120: 0.23 | AB120: 100.01 | AD120: 2.55 | AF120: 2.55
A121: Gleason Ball Clay | B121: 11.62 | C121: 0 | E121: 0.09 | H121: 0.04 | I121: 0.32 | J121: 0.07 | N121: 1.48 | P121: 26.28 | R121: 0.11 | S121: 58.8 | T121: 1.41 | X121: 0.01 | AB121: 100.23 | AD121: 2.6 | AF121: 2.6
A122: Goldart | B122: 10 | C122: 0.528 | E122: 0.2 | H122: 0.4 | I122: 1.9 | J122: 0.2 | N122: 1.8 | P122: 28.8 | S122: 55.2 | T122: 1.4 | AB122: 99.9 | AC122: 0.24 | AD122: 2.6 | AF122: 2.6
A123: Grolleg Kaolin | B123: 12.01 | C123: 0 | E123: 0.1 | H123: 0.3 | I123: 1.9 | J123: 0.1 | N123: 0.03 | P123: 37 | S123: 48 | T123: 0.7 | AB123: 100.14 | AD123: 2.6 | AF123: 2.6
A124: Gunheath Kaolin | B124: 11.94 | C124: 0 | E124: 0.19 | H124: 0.11 | I124: 1.5 | N124: 0.09 | P124: 38.73 | S124: 46.83 | T124: 0.61 | AB124: 100 | AD124: 2.6 | AF124: 2.6
A125: Hectalite | B125: 9.5 | C125: 0 | E125: 9.29 | H125: 18.74 | I125: 0.3 | J125: 2.58 | P125: 1.46 | S125: 56.99 | T125: 1.14 | AB125: 100 | AD125: 3.89 | AF125: 3.89
A126: Helmer Kaolin | B126: 13.9 | C126: 0 | E126: 0.48 | H126: 0.26 | I126: 0.53 | J126: 0.08 | N126: 1.13 | P126: 36 | S126: 46 | T126: 1.3 | AB126: 99.68 | AD126: 2.6 | AF126: 2.6
A127: Ilmenite | C127: 0 | N127: 0.5264 | T127: 0.5263 | AB127: 1.0527 | AD127: 4.75 | AF127: 4.75
A128: Iron Oxide Black | C128: 7.59 | T128: 103.58 | AB128: 103.58 | AC128: 3.45 | AD128: 5.75 | AF128: 5.75
A129: Iron Oxide Red | B129: 2 | C129: 3.3 | T129: 98 | AB129: 100 | AC129: 1.5 | AD129: 5.242 | AF129: 5.242
A130: Jackson Ball Clay | B130: 11.8 | C130: 0 | E130: 0.4 | H130: 0.3 | I130: 0.3 | J130: 0.1 | N130: 1.7 | P130: 29.5 | S130: 54.9 | T130: 0.9999999 | AB130: 99.9999999 | AD130: 2.6 | AF130: 2.6
A131: Jasper Slip | B131: 11.3 | C131: 0 | E131: 7.1 | H131: 2.9 | I131: 2.7 | J131: 0.4 | N131: 0.8 | P131: 14.1 | S131: 55.1 | T131: 5.6 | AB131: 100 | AD131: 2.6 | AF131: 2.6
A132: Jordan Fireclay | B132: 6.78 | C132: 0 | E132: 0.2 | H132: 0.5 | I132: 2 | J132: 0.197 | N132: 1.2 | P132: 20.2 | S132: 67.23 | T132: 1.71 | AB132: 100.017 | AD132: 2.6 | AF132: 2.6
A133: K&T Special | B133: 14.8 | C133: 0 | E133: 0.3 | H133: 0.5 | I133: 0.9 | J133: 0.2 | N133: 1.5 | P133: 27.4 | S133: 53.3 | T133: 1.1 | AB133: 100 | AD133: 2.6 | AF133: 2.6
A134: K-200 Feldspar | B134: 0.31 | C134: 0 | E134: 0.18 | I134: 10.14 | J134: 3.36 | P134: 17.86 | S134: 68.07 | T134: 0.08 | AB134: 100 | AD134: 2.66 | AF134: 2.66
A135: Kaolin | B135: 12.5 | C135: 0.77 | P135: 40.17 | S135: 47.33 | AB135: 100 | AC135: =AC57 -> 0.35 | AD135: 2.6 | AF135: 2.6
A136: Kaopaque 20 Kaolin | B136: 12 | C136: 0 | E136: 0.22 | H136: 0.03 | I136: 0.081 | J136: 0.03 | N136: 0.68 | P136: 40.29 | S136: 46.34 | T136: 0.33 | AB136: 100.001 | AD136: 2.6 | AF136: 2.6
A137: Kingman Feldspar | B137: 0.08 | C137: =IF(AC137<>"",AC137*2.2,0) -> 0 | E137: 0.1 | I137: 12 | J137: 2.8 | P137: 18.7 | S137: 66.17 | T137: 0.11 | AB137: =SUM(D137:Z137)+B137 -> 99.96 | AD137: 2.66 | AF137: 2.66
A138: Kentucky OM #4 Ball Clay | B138: 13.2 | C138: 0.55 | E138: 0.3 | H138: 0.5 | I138: 0.9 | J138: 0.2 | N138: 1.5 | P138: 27 | S138: 55.4 | T138: 1 | AB138: 100 | AC138: 0.25 | AD138: =IF(AF138="",AD$2,AF138) -> 2.6 | AF138: 2.6
A139: KTS-2 Ball Clay | B139: 9.9 | C139: 0 | E139: 0.3 | H139: 0.4 | I139: 1.3 | J139: 0.2 | N139: 1.4 | P139: 24.3 | S139: 61.2 | T139: 1 | AB139: 100 | AD139: 2.6 | AF139: 2.6
A140: KY Special | B140: 13.3 | C140: 0 | E140: 0.5 | H140: 0.5 | I140: 1.1 | N140: 1.3 | P140: 27.5 | S140: 54.56 | T140: 1.2 | AB140: 99.96 | AD140: 2.6 | AF140: 2.6
A141: Kyanite | C141: 0.66 | P141: 62.9 | S141: 37.08 | AB141: 99.98 | AC141: 0.3 | AD141: 3.67 | AF141: 3.67
A142: Laguna Borate | B142: 19 | C142: 0 | E142: 18.9 | H142: 2.3 | I142: 1.38 | J142: 4 | P142: 8.1 | Q142: 27.5 | S142: 16.7 | T142: 0.07 | AB142: 97.95 | AD142: 2.42 | AF142: 2.42
A143: Lead Bisilicate | C143: 0 | F143: 64.93 | P143: 2.55 | S143: 32.52 | AB143: 100 | AD143: 4.62 | AF143: 4.62
A144: Lead Carbonate | B144: 13.5 | C144: 0 | F144: 86.5 | AB144: 100 | AD144: 6.6 | AF144: 6.6
A145: Lepidolite | B145: 27.5 | C145: 0 | G145: 3.1 | I145: 6.9 | J145: 0.76 | P145: 19.2 | S145: 42.4 | T145: 0.06 | AB145: 99.92 | AD145: 2.84 | AF145: 2.84
A146: Litharge | C146: 0 | F146: 100 | AB146: 100 | AD146: 6.6 | AF146: 6.6
A147: Lithium Carbonate | B147: 59.3 | C147: 48.4 | G147: 40.7 | AB147: 100 | AC147: 22 | AD147: 2.11 | AF147: 2.11
A148: Lithospar | C148: 0 | G148: 2 | I148: 2.9 | J148: 4.04 | P148: 21.69 | S148: 69.4 | AB148: 100.03 | AD148: 3.15 | AF148: 3.15
A149: M&D Ball Clay | B149: 10.1 | C149: 0 | E149: 0.5 | H149: 0.5 | I149: 0.5 | N149: 1.3 | P149: 27.3 | S149: 57.46 | T149: 2.3 | AB149: 99.96 | AD149: 2.6 | AF149: 2.6
A150: Magnesium Carbonate | B150: 56.5 | C150: 13.2 | E150: 0.5 | H150: 42.6 | K150: 0.25 | P150: 0.15 | T150: 0.03 | AB150: 100.03 | AC150: 6 | AD150: 2 | AF150: 2
A151: Manganese Carbonate | B151: 38.38 | C151: 14.3 | X151: 61.6 | AB151: 99.98 | AC151: 6.5 | AD151: 3.12 | AF151: 3.12
A152: Manganese Dioxide. MnO2 | B152: 29.1 | C152: 5.5 | X152: 70.9 | AB152: 100 | AC152: 2.5 | AD152: 5.026 | AF152: 5.026
A153: Manganese Oxide. MnO | B153: 18.5 | C153: 5.5 | X153: 81.5 | AB153: 100 | AC153: 2.5 | AD153: 5.43 | AF153: 5.43
A154: Minspar 200 | B154: 0.3 | C154: 0.682 | E154: 1.5 | I154: 4.1 | J154: 6.5 | P154: 18.5 | S154: 68.6 | T154: 0.06 | AB154: 99.56 | AC154: 0.31 | AD154: 2.66 | AF154: 2.66
A155: Mullite | C155: 0.99 | P155: 71.8 | S155: 28.2 | AB155: 100 | AC155: 0.45 | AD155: 3.2 | AF155: 3.2
A156: Murrays Borate | B156: 5 | C156: 0 | E156: 24.9 | J156: 5.7 | P156: 0.49 | Q156: 36.1 | S156: 27.8 | AB156: 99.99 | AD156: 2.42 | AF156: 2.42
A157: Nepheline Syenite | B157: 0.7 | C157: 0.682 | E157: 0.7 | H157: 0.1 | I157: 4.6 | J157: 9.8 | P157: 23.3 | S157: 60.7 | T157: 0.07 | AB157: 99.97 | AC157: 0.31 | AD157: 2.66 | AF157: 2.66
A158: Nickel Oxide, green | B158: 0 | C158: 92.4 | Y158: 100 | AB158: 100 | AC158: 42 | AD158: 6.62 | AF158: 6.62
A159: NP Blend Ball Clay | B159: 11.4 | C159: 0 | E159: 0.3 | H159: 0.4 | I159: 0.95 | J159: 0.25 | N159: 1.6 | P159: 29.45 | S159: 54.5 | T159: 1.15 | AB159: 100 | AD159: 2.6 | AF159: 2.6
A160: Nytal Talc | B160: 5.4 | C160: 0 | E160: 8.4 | H160: 30 | J160: 0.34 | P160: 0.31 | S160: 55.2 | T160: 0.16 | X160: 0.17 | AB160: 99.98 | AD160: 2.7 | AF160: 2.7
A161: Ocamulgee Red Clay | B161: 13.7 | C161: 0.55 | E161: 0.37 | H161: 0.79 | I161: 1.29 | J161: 0.36 | N161: 1.2 | P161: 21.8 | S161: 53.9 | T161: 6.4 | X161: 0.23 | AB161: 100.04 | AC161: 0.25 | AD161: 2.6 | AF161: 2.6
A162: OM #4 Ball Clay | B162: 12.6 | C162: 0.55 | E162: 0.3 | H162: 0.4 | I162: 1 | J162: 0.3 | N162: 1.2 | P162: 27.9 | S162: 55.2 | T162: 1.1 | AB162: 100 | AC162: =AC138 -> 0.25 | AD162: 2.6 | AF162: 2.6
A163: Oxford Feldspar | B163: 0.186 | C163: 0 | E163: 0.38 | I163: 8.06 | J163: 3.27 | P163: 17.32 | S163: 70.69 | T163: 0.1 | AB163: 100.006 | AD163: 2.66 | AF163: 2.66
A164: PBX Fireclay | B164: 0.88 | C164: 0 | E164: 0.36 | H164: 0.35 | N164: 1.5 | P164: 38.5 | S164: 56.6 | T164: 1.75 | AB164: 99.94 | AD164: 2.6 | AF164: 2.6
A165: Pearl Ash | B165: 43 | C165: 0 | I165: 57 | AB165: 100 | AD165: 2.04 | AF165: 2.04
A166: Pearl Ash Calcined | B166: 31.8 | C166: 0 | I166: 68.2 | AB166: 100 | AD166: 2.43 | AF166: 2.43
A167: Petalite | B167: 0.55 | C167: 5.5 | G167: 4.32 | I167: 0.26 | J167: 0.25 | P167: 17.5 | S167: 77.13 | AB167: 100.01 | AC167: 2.5 | AD167: 2.43 | AF167: 2.43
A168: Pioneer Kaolin | B168: 13.96 | C168: 0 | E168: 0.2 | H168: 0.1 | J168: 0.1 | N168: 1.4 | P168: 38.3 | S168: 45.4 | T168: 0.4 | AB168: 99.86 | AD168: 2.6 | AF168: 2.6
A169: Plastic Vitrox | B169: 2.8 | C169: 0.66 | E169: 1 | H169: 0.5 | I169: 5 | J169: 0.9 | N169: 0.1 | P169: 12.7 | S169: 76.5 | T169: 0.5 | AB169: 100 | AC169: 0.3 | AD169: 2.6 | AF169: 2.6
A170: Portland Cement | B170: 3.2 | C170: 0 | E170: 62.28 | H170: 2.22 | P170: 7.55 | S170: 22.65 | T170: 2.1 | AB170: 100 | AD170: =IF(AF170="",3.5,AF170) -> 1.44 | AF170: 1.44
A171: Potash Feldspar | B171: 0.04 | C171: 0 | I171: 16.9 | P171: 18.31173 | S171: 64.73735 | AB171: 99.98908 | AD171: 2.66 | AF171: 2.66
A172: Pumice | B172: 3.8 | C172: 0 | E172: 0.7 | I172: 7.8 | J172: 1.8 | N172: 0.5 | P172: 11.5 | S172: 72.7 | T172: 1.2 | AB172: 100 | AD172: 0.95 | AF172: 0.95
A173: PC Clay | B173: 2.8 | C173: 0 | E173: 1 | H173: 0.5 | I173: 5 | J173: 0.9 | N173: 0.1 | P173: 12.7 | S173: 76.5 | T173: 0.5 | AB173: 100 | AD173: 2.6 | AF173: 2.6
A174: Pyrax Pyrophyllite | B174: 3.1 | C174: 0 | E174: 0.1 | H174: 0.1 | I174: 1.8 | J174: 0.3 | N174: 0.1 | P174: 16.08 | S174: 78.20278 | T174: 0.2010659 | AB174: 99.9838459 | AD174: 2.75 | AF174: 2.75
A175: Pyrophyllite | B175: 4 | C175: 0.704 | P175: 28.3 | S175: 67.7 | AB175: 100 | AC175: 0.32 | AD175: 2.75 | AF175: 2.75
A176: Quartz | C176: 0.506 | S176: 100 | AB176: 100 | AC176: =AC184 -> 0.23 | AD176: 2.6 | AF176: 2.6
A177: Ravenscrag Slip | B177: 4.8 | C177: 0 | E177: 4.97 | H177: 1.9 | I177: 3.37 | J177: 0.5 | N177: 0.43 | P177: 14.15 | S177: 69.02 | T177: 0.86 | AB177: 100 | AD177: 2.6 | AF177: 2.6
A178: Red Lead | B178: 2.1 | C178: 0 | F178: 97.9 | AB178: 100 | AD178: 8.3 | AF178: 8.3
A179: Redart | B179: 4.8 | C179: 0.66 | E179: 0.26 | H179: 1.6 | I179: 4.15 | J179: 0.38 | N179: 1.09 | P179: 15.5 | R179: 0.22 | S179: 65 | T179: 7 | AB179: 100 | AC179: 0.3 | AD179: 2.6 | AF179: 2.6
A180: Rutile | B180: 0.1 | C180: 9.35 | N180: 92 | O180: 0.97 | P180: 0.3 | T180: 6.5 | AB180: 99.87 | AC180: 4.25 | AD180: 4.23 | AF180: 4.23
A181: Saffer XX Ball Clay | B181: 9.7 | C181: 0 | E181: 0.5 | H181: 0.3 | I181: 0.9 | J181: 0.3 | N181: 1.7 | P181: 29.17 | S181: 56.73 | T181: 0.69 | AB181: 99.99 | AD181: 2.6 | AF181: 2.6
A182: Sheffield Slip | B182: 8 | C182: 0 | E182: 3.5 | H182: 3.87 | I182: 4.44 | J182: 1.32 | N182: 1.06 | P182: 21.15 | S182: 55.93 | T182: 8.73 | AB182: 108 | AD182: 2.6 | AF182: 2.6
A183: SIL-O-SPAR | B183: 0.07 | C183: 0 | E183: 1.05 | I183: 2.87 | J183: 4.88 | P183: 13.5 | S183: 77.57 | T183: 0.06 | AB183: 100 | AD183: 2.65 | AF183: 2.65
A184: Silica | C184: 0.506 | S184: 100 | AB184: 100 | AC184: 0.23 | AD184: 2.65 | AF184: 2.65
A185: Silica, SIL-CO-SIL 52 | B185: 0.01 | C185: 0.506 | E185: 0.008 | H185: 0.008 | I185: 0.01 | J185: 0.008 | N185: 0.02 | P185: 0.2 | S185: 99.64 | T185: 0.026 | AB185: =SUM(D185:Z185)+B185 -> 99.93 | AC185: 0.23 | AD185: 2.65 | AF185: 2.65 | AG185: SIL-CO-SIL 52 http://www.u-s-silica.com/PDS/Columbia/ColSCS522009.pdf
A186: Sledge Ball Clay | B186: 8.77 | C186: 0 | E186: 0.4 | H186: 0.4 | I186: 0.4 | N186: 1.8 | P186: 24.3 | S186: 63 | T186: 0.9 | AB186: 99.97 | AD186: 2.6 | AF186: 2.6
A187: Snobrite Kaolin | B187: 13.9 | C187: 0 | E187: 0.26 | N187: 0.5 | P187: 39.7 | S187: 44.8 | T187: 0.75 | AB187: 99.91 | AD187: 2.6 | AF187: 2.6
A188: Soda Ash | B188: 78.3 | C188: 2.09 | J188: 21.7 | AB188: 100 | AC188: 0.95 | AD188: 2.25 | AF188: 2.25
A189: Soda Feldspar | C189: 0 | J189: 11.8 | P189: 19.44 | S189: 68.74 | AB189: 99.98 | AD189: 2.66 | AF189: 2.66
A190: Spinks Blend Ball | B190: 10.65 | C190: 0 | E190: 0.23 | H190: 0.24 | I190: 0.67 | J190: 0.19 | N190: 1.5 | P190: 26.75 | R190: 0.11 | S190: 58.59 | T190: 1.05 | X190: 0.0198948 | AB190: 99.9998948 | AD190: =IF(AF190="",AD$2,AF190) -> 2.6 | AF190: 2.6
A191: Spodumene | B191: 1.5 | C191: 3.85 | G191: 8.01 | P191: 27.41 | S191: 64.59 | AB191: 101.51 | AC191: 1.75 | AD191: =IF(AF191="",AD$2,AF191) -> 3.15 | AF191: 3.15
A192: Spruce Pine #4 Spar | C192: 0 | E192: 1.55 | I192: 5 | J192: 6.2 | P192: 19.05 | S192: 68.14 | T192: 0.06 | AB192: 100 | AD192: 2.56 | AF192: 2.56
A193: Strontium Carbonate | B193: 29.8 | C193: 6.05 | K193: 70.2 | AB193: 100 | AC193: 2.75 | AD193: 3.74 | AF193: 3.74
A194: Superpax | C194: 0 | O194: 66.3 | S194: 33.7 | AB194: 100 | AD194: 4.56 | AF194: 4.56
A195: Talc | B195: 8 | C195: 2.09 | E195: 3.5 | H195: 29.5 | I195: 0.25 | P195: 0.4 | S195: 54.5 | T195: 0.4 | AB195: =SUM(D195:Z195)+B195 -> 96.55 | AC195: 0.95 | AD195: 2.7 | AF195: 2.7
A196: Talc, C-98 | B196: 10.63 | C196: 2.09 | E196: 3.5 | H196: 29.5 | I196: 0.27 | N196: 0.9 | P196: 0.45 | S196: 54.3 | T196: 0.45 | AB196: 100 | AC196: 0.95 | AD196: 2.7 | AF196: 2.7 | AG196: Amtal CB-98
A197: Tektamer 38 Biocide | C197: 0 | AB197: 0 | AD197: 2.5
A198: Tennessee #1 Ball | B198: 10.2 | C198: 0 | E198: 0.3 | H198: 0.3 | I198: 1.2 | J198: 0.2 | N198: 1.5 | P198: 28.1 | S198: 57.4 | T198: 0.8 | AB198: 100 | AD198: 2.6 | AF198: 2.6
A199: Tennessee #5 Ball | B199: 12.6 | C199: 0.484 | E199: 0.3 | H199: 0.4 | I199: 1 | J199: 0.3 | N199: 1.2 | P199: 27.9 | S199: 55.2 | T199: 1.1 | AB199: 100 | AC199: 0.22 | AD199: 2.6 | AF199: 2.6
A200: Tennessee #10 Ball | B200: 11.9 | C200: 0.484 | E200: 0.4 | H200: 0.3 | I200: 0.6 | J200: 0.6 | N200: 1.5 | P200: 30.9 | S200: 52.8 | T200: 1.01 | AB200: 100.01 | AC200: 0.22 | AD200: 2.6 | AF200: 2.6
... 24 more rows

Sheet About

Sheet Constants (hidden)
B4: Coefficients | C4: Table 1 | D4: Table 2 | E4: Table 3 | H4: Table 3 Overrides
B5: & Constants | C5: x10^4/F | E5: Dig Fire | H5: x10^4/F | I5: x10^4/C
C6: CoE | D6: CoE | E6: CoE | F6: MW | H6: 100
B7: Al2O3 | C7: 0.014 | D7: 1.4 | E7: =H7*H$6 -> 3 | F7: =C32*2+3*C46 -> 101.96 | H7: =I7*5/9 -> 0.03 | I7: =5.4/100 -> 0.054
B8: B2O3 | C8: -0.065 | D8: -6.53 | E8: =H8*H$6 -> 3.1 | F8: =2*C33+3*15.9994 -> 69.6182 | H8: 0.031
B9: BaO | C9: 0.14 | D9: 14 | E9: =H9*H$6 -> 7.166666667 | F9: =C34+C46 -> 153.33 | H9: =I9*5/9 -> 0.07166666667 | I9: =0.129 -> 0.129
B10: CaO | C10: 0.163 | D10: 16.3 | E10: 7.288888889 | F10: =C35+16 -> 56.08 | H10: =I10*5/9 -> 0.07288888889 | I10: 0.1312
B11: CoO | C11: 0.05 | D11: 8.8 | E11: 5.555555556 | F11: =58.93+C46 -> 74.93 | H11: =C11/0.9 -> 0.05555555556
B12: Cr2O3 | C12: 0.057 | D12: 10.2 | E12: 6.333333333 | F12: =3*C46+2*C37 -> 152 | H12: =C12/0.9 -> 0.06333333333
B13: CuO | C13: 0.03 | D13: 4.4 | E13: 3.5 | F13: =C46+63.54 -> 79.54 | H13: 0.035
B14: Fe2O3 | C14: 0.05 | D14: 10.4 | E14: 5.783333333 | F14: =3*16+2*C39 -> 159.68 | H14: =I14*5/9 -> 0.05783333333 | I14: 0.1041
B15: FeO | C15: 0.055 | D15: =D14/C14*C15 -> 11.44 | E15: 6.666666667 | F15: =C39+C46 -> 71.84 | H15: =I15*5/9 -> 0.06666666667 | I15: 0.12
B16: K2O | C16: 0.39 | D16: 39 | E16: 33.1 | F16: =C46+2*C40 -> 94.2 | H16: 0.331
B17: Li2O | C17: 0.075 | D17: 7.45 | E17: 6.8 | F17: =C46+C41*2 -> 29.882 | H17: 0.068
B18: MgO | C18: 0.045 | D18: 4.5 | E18: 6 | F18: =C42+C46 -> 40.31 | H18: =I18*5/9 -> 0.06 | I18: 0.108
B19: MnO | C19: 0.057 | D19: 5.7 | E19: 5 | F19: =C46+C43 -> 70.94 | H19: =I19*5/9 -> 0.05 | I19: 0.09
B20: Na2O | C20: 0.416 | D20: 41.6 | E20: 38.7 | F20: =2*C44+C46 -> 61.98 | H20: 0.387
B21: NiO | C21: 0.05 | D21: =5 -> 5 | E21: 5 | F21: =C46+C45 -> 74.69 | H21: 0.05
B22: P2O5 | C22: 0.068 | D22: 7.45 | E22: 7.14 | F22: =C46*5+2*C47 -> 141.94 | H22: =C22*1.05 -> 0.0714
B23: PbO | C23: 0.106 | D23: 10.6 | E23: 8.3 | F23: =C46+C48 -> 223.2 | H23: 0.083
B24: SiO2 | C24: 0.005 | D24: 0.5 | E24: 0.3055555556 | F24: =2*C46+C49 -> 60.09 | H24: =I24*5/9 -> 0.003055555556 | I24: 0.0055
B25: SnO2 | C25: 0.037 | D25: 3.65 | E25: 3.65 | F25: =C50+2*C46 -> 150.71 | H25: 0.0365
B26: SrO | C26: 0.141 | D26: 13.5 | E26: 7.455555556 | F26: =C51+C46 -> 103.62 | H26: =I26*5/9 -> 0.07455555556 | I26: 0.1342
B27: TiO2 | C27: 0.106 | D27: 10.6 | E27: 3.966666667 | F27: =C52+2*C46 -> 79.87 | H27: =I27*5/9 -> 0.03966666667 | I27: 0.0714
B28: ZnO | C28: 0.07 | D28: 7 | E28: 9.4 | F28: =C54+C46 -> 81.39 | H28: 0.094
B29: ZrO2 | C29: 0.023 | D29: 2.3 | E29: 2 | F29: =C53+2*C46 -> 123.22 | H29: 0.02
A31: At Wts
B32: Al | C32: 26.98
B33: B | C33: 10.81
B34: Ba | C34: 137.33
B35: Ca | C35: 40.08
B36: Co | C36: 58.93
B37: Cr | C37: 52
B38: Cu | C38: 63.55
B39: Fe | C39: 55.84
B40: K | C40: 39.1
B41: Li | C41: 6.941
B42: Mg | C42: 24.31
B43: Mn | C43: 54.94
B44: Na | C44: 22.99
B45: Ni | C45: 58.69
B46: O | C46: 16
B47: P | C47: 30.97
B48: Pb | C48: 207.2
B49: Si | C49: 28.09
B50: Sn | C50: 118.71
B51: Sr | C51: 87.62
B52: Ti | C52: 47.87
B53: Zr | C53: 91.22
B54: Zn | C54: 65.39

Sheet FAQ

Sheet scratchSheet1 (hidden)
A1: =scratchSheet1!#REF! ->  | B1: Weight | C1: =AND(ISNUMBER(D1), IF(NOT(ISNUMBER(D2)),FALSE,D2<>0)) -> TRUE | D1: =scratchSheet1!$E$10:$E$10 -> 0
A2: 5 | B2: 8 | C2: 9 | D2: =MDETERM(Matrix) -> -0.7765958
B4: Materials | C4: Wt (Grams) | E4: BaO | F4: Al2O3 | G4: SiO2
B5: Alumina Calcined | C5: 1 | E5: 0 | F5: 1 | G5: 0
B6: Barium Carbonate | C6: 2 | E6: 0.7765958 | F6: 0 | G6: 0
B7: silica | C7: 3 | E7: 0 | F7: 0 | G7: 1
E10: 0 | F10: 1.287671141 | G10: 0
E11: 1 | F11: 0 | G11: 0
E12: 0 | F12: 0 | G12: 1
